{"text_format":"3","workbook":"xlsx","n_sheets":4,"sheets":["ЗВЕДЕННЯ БЮДЖЕТУ ЗА РІК","ЗВЕДЕННЯ ЩОМІСЯЧНИХ ВИТРАТ","ВИТРАТИ ЗА СТАТТЯМИ","БЛАГОДІЙНІСТЬ І СПОНСОРСТВО"],"not_rendered":{"defined_names":15},"read":"whole","date_system":"1900"}

{"sheet":"ЗВЕДЕННЯ БЮДЖЕТУ ЗА РІК","index":0,"n_rows":17,"n_cols":7,"rows_kept":17,"merged":[[1,1,1,4]]}
[null,"ЗВЕДЕННЯ ЩОМІСЯЧНИХ ВИТРАТ"]
[null,"ПОРІВНЯННЯ ФАКТИЧНИХ ВИТРАТ І БЮДЖЕТУ ЗА РІК",{"$nulls":3},"рік",{"$f":"YEAR(TODAY())","v":2019}]
[]
[null,"Код головної книги","Назва рахунка","Фактично","Бюджет","Залишок (₴)","Залишок (%)"]
[null,1000,"Реклама",{"$f":"SUMIF(ЗведенняЩомісячнихВитрат[Код головної книги],ТаблицяВідомостейЗаРік[[#This Row],[Код головної книги]],ЗведенняЩомісячнихВитрат[Підсумок])","v":{"v":0,"d":"0.00₴"}},{"v":100000,"d":"100,000.00₴"},{"$f":"IF(ТаблицяВідомостейЗаРік[[#This Row],[Бюджет]]=\"\",\"\",ТаблицяВідомостейЗаРік[[#This Row],[Бюджет]]-ТаблицяВідомостейЗаРік[[#This Row],[Фактично]])","v":{"v":100000,"d":"100,000.00₴"}},{"$f":"IFERROR(ТаблицяВідомостейЗаРік[[#This Row],[Залишок (₴)]]/ТаблицяВідомостейЗаРік[[#This Row],[Бюджет]],\"\")","v":{"v":1,"d":"100.00%"}}]
[null,2000,"Офісне обладнання",{"$f":"SUMIF(ЗведенняЩомісячнихВитрат[Код головної книги],ТаблицяВідомостейЗаРік[[#This Row],[Код головної книги]],ЗведенняЩомісячнихВитрат[Підсумок])","v":{"v":0,"d":"0.00₴"}},{"v":100000,"d":"100,000.00₴"},{"$f":"IF(ТаблицяВідомостейЗаРік[[#This Row],[Бюджет]]=\"\",\"\",ТаблицяВідомостейЗаРік[[#This Row],[Бюджет]]-ТаблицяВідомостейЗаРік[[#This Row],[Фактично]])","v":{"v":100000,"d":"100,000.00₴"}},{"$f":"IFERROR(ТаблицяВідомостейЗаРік[[#This Row],[Залишок (₴)]]/ТаблицяВідомостейЗаРік[[#This Row],[Бюджет]],\"\")","v":{"v":1,"d":"100.00%"}}]
[null,3000,"Принтери",{"$f":"SUMIF(ЗведенняЩомісячнихВитрат[Код головної книги],ТаблицяВідомостейЗаРік[[#This Row],[Код головної книги]],ЗведенняЩомісячнихВитрат[Підсумок])","v":{"v":0,"d":"0.00₴"}},{"v":100000,"d":"100,000.00₴"},{"$f":"IF(ТаблицяВідомостейЗаРік[[#This Row],[Бюджет]]=\"\",\"\",ТаблицяВідомостейЗаРік[[#This Row],[Бюджет]]-ТаблицяВідомостейЗаРік[[#This Row],[Фактично]])","v":{"v":100000,"d":"100,000.00₴"}},{"$f":"IFERROR(ТаблицяВідомостейЗаРік[[#This Row],[Залишок (₴)]]/ТаблицяВідомостейЗаРік[[#This Row],[Бюджет]],\"\")","v":{"v":1,"d":"100.00%"}}]
[null,4000,"Витрати на сервер",{"$f":"SUMIF(ЗведенняЩомісячнихВитрат[Код головної книги],ТаблицяВідомостейЗаРік[[#This Row],[Код головної книги]],ЗведенняЩомісячнихВитрат[Підсумок])","v":{"v":0,"d":"0.00₴"}},{"v":100000,"d":"100,000.00₴"},{"$f":"IF(ТаблицяВідомостейЗаРік[[#This Row],[Бюджет]]=\"\",\"\",ТаблицяВідомостейЗаРік[[#This Row],[Бюджет]]-ТаблицяВідомостейЗаРік[[#This Row],[Фактично]])","v":{"v":100000,"d":"100,000.00₴"}},{"$f":"IFERROR(ТаблицяВідомостейЗаРік[[#This Row],[Залишок (₴)]]/ТаблицяВідомостейЗаРік[[#This Row],[Бюджет]],\"\")","v":{"v":1,"d":"100.00%"}}]
[null,5000,"Господарські товари",{"$f":"SUMIF(ЗведенняЩомісячнихВитрат[Код головної книги],ТаблицяВідомостейЗаРік[[#This Row],[Код головної книги]],ЗведенняЩомісячнихВитрат[Підсумок])","v":{"v":0,"d":"0.00₴"}},{"v":50000,"d":"50,000.00₴"},{"$f":"IF(ТаблицяВідомостейЗаРік[[#This Row],[Бюджет]]=\"\",\"\",ТаблицяВідомостейЗаРік[[#This Row],[Бюджет]]-ТаблицяВідомостейЗаРік[[#This Row],[Фактично]])","v":{"v":50000,"d":"50,000.00₴"}},{"$f":"IFERROR(ТаблицяВідомостейЗаРік[[#This Row],[Залишок (₴)]]/ТаблицяВідомостейЗаРік[[#This Row],[Бюджет]],\"\")","v":{"v":1,"d":"100.00%"}}]
[null,6000,"Витрати на клієнтів",{"$f":"SUMIF(ЗведенняЩомісячнихВитрат[Код головної книги],ТаблицяВідомостейЗаРік[[#This Row],[Код головної книги]],ЗведенняЩомісячнихВитрат[Підсумок])","v":{"v":0,"d":"0.00₴"}},{"v":25000,"d":"25,000.00₴"},{"$f":"IF(ТаблицяВідомостейЗаРік[[#This Row],[Бюджет]]=\"\",\"\",ТаблицяВідомостейЗаРік[[#This Row],[Бюджет]]-ТаблицяВідомостейЗаРік[[#This Row],[Фактично]])","v":{"v":25000,"d":"25,000.00₴"}},{"$f":"IFERROR(ТаблицяВідомостейЗаРік[[#This Row],[Залишок (₴)]]/ТаблицяВідомостейЗаРік[[#This Row],[Бюджет]],\"\")","v":{"v":1,"d":"100.00%"}}]
[null,7000,"Комп’ютери",{"$f":"SUMIF(ЗведенняЩомісячнихВитрат[Код головної книги],ТаблицяВідомостейЗаРік[[#This Row],[Код головної книги]],ЗведенняЩомісячнихВитрат[Підсумок])","v":{"v":0,"d":"0.00₴"}},{"v":75000,"d":"75,000.00₴"},{"$f":"IF(ТаблицяВідомостейЗаРік[[#This Row],[Бюджет]]=\"\",\"\",ТаблицяВідомостейЗаРік[[#This Row],[Бюджет]]-ТаблицяВідомостейЗаРік[[#This Row],[Фактично]])","v":{"v":75000,"d":"75,000.00₴"}},{"$f":"IFERROR(ТаблицяВідомостейЗаРік[[#This Row],[Залишок (₴)]]/ТаблицяВідомостейЗаРік[[#This Row],[Бюджет]],\"\")","v":{"v":1,"d":"100.00%"}}]
[null,8000,"План медичного обслуговування",{"$f":"SUMIF(ЗведенняЩомісячнихВитрат[Код головної книги],ТаблицяВідомостейЗаРік[[#This Row],[Код головної книги]],ЗведенняЩомісячнихВитрат[Підсумок])","v":{"v":0,"d":"0.00₴"}},{"v":65000,"d":"65,000.00₴"},{"$f":"IF(ТаблицяВідомостейЗаРік[[#This Row],[Бюджет]]=\"\",\"\",ТаблицяВідомостейЗаРік[[#This Row],[Бюджет]]-ТаблицяВідомостейЗаРік[[#This Row],[Фактично]])","v":{"v":65000,"d":"65,000.00₴"}},{"$f":"IFERROR(ТаблицяВідомостейЗаРік[[#This Row],[Залишок (₴)]]/ТаблицяВідомостейЗаРік[[#This Row],[Бюджет]],\"\")","v":{"v":1,"d":"100.00%"}}]
[null,9000,"Витрати на будівництво",{"$f":"SUMIF(ЗведенняЩомісячнихВитрат[Код головної книги],ТаблицяВідомостейЗаРік[[#This Row],[Код головної книги]],ЗведенняЩомісячнихВитрат[Підсумок])","v":{"v":0,"d":"0.00₴"}},{"v":125000,"d":"125,000.00₴"},{"$f":"IF(ТаблицяВідомостейЗаРік[[#This Row],[Бюджет]]=\"\",\"\",ТаблицяВідомостейЗаРік[[#This Row],[Бюджет]]-ТаблицяВідомостейЗаРік[[#This Row],[Фактично]])","v":{"v":125000,"d":"125,000.00₴"}},{"$f":"IFERROR(ТаблицяВідомостейЗаРік[[#This Row],[Залишок (₴)]]/ТаблицяВідомостейЗаРік[[#This Row],[Бюджет]],\"\")","v":{"v":1,"d":"100.00%"}}]
[null,10000,"Маркетинг",{"$f":"SUMIF(ЗведенняЩомісячнихВитрат[Код головної книги],ТаблицяВідомостейЗаРік[[#This Row],[Код головної книги]],ЗведенняЩомісячнихВитрат[Підсумок])","v":{"v":0,"d":"0.00₴"}},{"v":100000,"d":"100,000.00₴"},{"$f":"IF(ТаблицяВідомостейЗаРік[[#This Row],[Бюджет]]=\"\",\"\",ТаблицяВідомостейЗаРік[[#This Row],[Бюджет]]-ТаблицяВідомостейЗаРік[[#This Row],[Фактично]])","v":{"v":100000,"d":"100,000.00₴"}},{"$f":"IFERROR(ТаблицяВідомостейЗаРік[[#This Row],[Залишок (₴)]]/ТаблицяВідомостейЗаРік[[#This Row],[Бюджет]],\"\")","v":{"v":1,"d":"100.00%"}}]
[null,11000,"Благодійність",{"$f":"SUMIF(ЗведенняЩомісячнихВитрат[Код головної книги],ТаблицяВідомостейЗаРік[[#This Row],[Код головної книги]],ЗведенняЩомісячнихВитрат[Підсумок])","v":{"v":0,"d":"0.00₴"}},{"v":250000,"d":"250,000.00₴"},{"$f":"IF(ТаблицяВідомостейЗаРік[[#This Row],[Бюджет]]=\"\",\"\",ТаблицяВідомостейЗаРік[[#This Row],[Бюджет]]-ТаблицяВідомостейЗаРік[[#This Row],[Фактично]])","v":{"v":250000,"d":"250,000.00₴"}},{"$f":"IFERROR(ТаблицяВідомостейЗаРік[[#This Row],[Залишок (₴)]]/ТаблицяВідомостейЗаРік[[#This Row],[Бюджет]],\"\")","v":{"v":1,"d":"100.00%"}}]
[null,12000,"Спонсорство",{"$f":"SUMIF(ЗведенняЩомісячнихВитрат[Код головної книги],ТаблицяВідомостейЗаРік[[#This Row],[Код головної книги]],ЗведенняЩомісячнихВитрат[Підсумок])","v":{"v":0,"d":"0.00₴"}},{"v":50000,"d":"50,000.00₴"},{"$f":"IF(ТаблицяВідомостейЗаРік[[#This Row],[Бюджет]]=\"\",\"\",ТаблицяВідомостейЗаРік[[#This Row],[Бюджет]]-ТаблицяВідомостейЗаРік[[#This Row],[Фактично]])","v":{"v":50000,"d":"50,000.00₴"}},{"$f":"IFERROR(ТаблицяВідомостейЗаРік[[#This Row],[Залишок (₴)]]/ТаблицяВідомостейЗаРік[[#This Row],[Бюджет]],\"\")","v":{"v":1,"d":"100.00%"}}]
[null,"Підсумок",null,{"$f":"SUBTOTAL(109,ТаблицяВідомостейЗаРік[Фактично])","v":{"v":0,"d":"0.00₴"}},{"$f":"SUBTOTAL(109,ТаблицяВідомостейЗаРік[Бюджет])","v":{"v":1140000,"d":"1,140,000.00₴"}},{"$f":"SUBTOTAL(109,ТаблицяВідомостейЗаРік[Залишок (₴)])","v":{"v":1140000,"d":"1,140,000.00₴"}},{"$f":"ТаблицяВідомостейЗаРік[[#Totals],[Залишок (₴)]]/ТаблицяВідомостейЗаРік[[#Totals],[Бюджет]]","v":{"v":1,"d":"100.00%"}}]

{"sheet":"ЗВЕДЕННЯ ЩОМІСЯЧНИХ ВИТРАТ","index":1,"n_rows":18,"n_cols":17,"rows_kept":18,"merged":[[1,1,1,16]]}
[null,"ЗВЕДЕННЯ БЮДЖЕТУ ЗА РІК","ВИТРАТИ ЗА ПУНКТАМИ"]
[null,"ЗВЕДЕННЯ ЩОМІСЯЧНИХ ВИТРАТ"]
[null,"Роздільник, який дає змогу фільтрувати назви рахунків, наведено в цій клітинці.",null,{"$f":"DATEVALUE(\"1-СІЧ\"&_РІК)","v":{"v":43466,"d":"4346600.00%"}},{"$f":"DATEVALUE(\"1-ЛЮТ\"&_РІК)","v":{"v":43497,"d":"4349700.00%"}},{"$f":"DATEVALUE(\"1-БЕР\"&_РІК)","v":{"v":43525,"d":"4352500.00%"}},{"$f":"DATEVALUE(\"1-КВІ\"&_РІК)","v":{"v":43556,"d":"4355600.00%"}},{"$f":"DATEVALUE(\"1-ТРА\"&_РІК)","v":{"v":43586,"d":"4358600.00%"}},{"$f":"DATEVALUE(\"1-ЧЕР\"&_РІК)","v":{"v":43617,"d":"4361700.00%"}},{"$f":"DATEVALUE(\"1-ЛИП\"&_РІК)","v":{"v":43647,"d":"4364700.00%"}},{"$f":"DATEVALUE(\"1-СЕР\"&_РІК)","v":{"v":43678,"d":"4367800.00%"}},{"$f":"DATEVALUE(\"1-ВЕР\"&_РІК)","v":{"v":43709,"d":"4370900.00%"}},{"$f":"DATEVALUE(\"1-ЖОВ\"&_РІК)","v":{"v":43739,"d":"4373900.00%"}},{"$f":"DATEVALUE(\"1-ЛИС\"&_РІК)","v":{"v":43770,"d":"4377000.00%"}},{"$f":"DATEVALUE(\"1-ГРУ\"&_РІК)","v":{"v":43800,"d":"4380000.00%"}}]
[{"$nulls":3},{"$f":"EOMONTH(D3,0)","v":{"v":43496,"d":"4349600.00%"}},{"$f":"EOMONTH(E3,0)","v":{"v":43524,"d":"4352400.00%"}},{"$f":"EOMONTH(F3,0)","v":{"v":43555,"d":"4355500.00%"}},{"$f":"EOMONTH(G3,0)","v":{"v":43585,"d":"4358500.00%"}},{"$f":"EOMONTH(H3,0)","v":{"v":43616,"d":"4361600.00%"}},{"$f":"EOMONTH(I3,0)","v":{"v":43646,"d":"4364600.00%"}},{"v":43677,"d":"4367700.00%"},{"v":43708,"d":"4370800.00%"},{"v":43738,"d":"4373800.00%"},{"v":43769,"d":"4376900.00%"},{"v":43799,"d":"4379900.00%"},{"v":43830,"d":"4383000.00%"}]
[null,"Код головної книги","Назва рахунка","Січень","Лютий","Березень","Квітень","Травень","Червень","Липень","Серпень","Вересень","Жовтень","Листопад","Грудень","Підсумок"," "]
[null,1000,"Реклама",{"$f":"SUMIFS(ВитратиЗаСтаттями[Сума чека],ВитратиЗаСтаттями[Код головної книги],ЗведенняЩомісячнихВитрат[[#This Row],[Код головної книги]],ВитратиЗаСтаттями[Дата виставлення рахунка-фактури],\">=\"&D$3,ВитратиЗаСтаттями[Дата виставлення рахунка-фактури],\"<=\"&D$4)+SUMIFS(Інше[Сума чека],Інше[Код головної книги],ЗведенняЩомісячнихВитрат[[#This Row],[Код головної книги]],Інше[Дата ініціювання запиту на платіж],\">=\"\" 1, \"&DATEVALUE(ЗведенняЩомісячнихВитрат[[#Headers],[Січень]]&_xlfn.SINGLE(_РІК)),Інше[Дата ініціювання запиту на платіж],\"<=\"&D$4)","v":{"v":0,"d":"0.00₴"}},{"$f":"SUMIFS(ВитратиЗаСтаттями[Сума чека],ВитратиЗаСтаттями[Код головної книги],ЗведенняЩомісячнихВитрат[[#This Row],[Код головної книги]],ВитратиЗаСтаттями[Дата виставлення рахунка-фактури],\">=\"&E$3,ВитратиЗаСтаттями[Дата виставлення рахунка-фактури],\"<=\"&E$4)+SUMIFS(Інше[Сума чека],Інше[Код головної книги],ЗведенняЩомісячнихВитрат[[#This Row],[Код головної книги]],Інше[Дата ініціювання запиту на платіж],\">=\"\" 1, \"&DATEVALUE(ЗведенняЩомісячнихВитрат[[#Headers],[Лютий]]&_xlfn.SINGLE(_РІК)),Інше[Дата ініціювання запиту на платіж],\"<=\"&E$4)","v":{"v":0,"d":"0.00₴"}},{"$f":"SUMIFS(ВитратиЗаСтаттями[Сума чека],ВитратиЗаСтаттями[Код головної книги],ЗведенняЩомісячнихВитрат[[#This Row],[Код головної книги]],ВитратиЗаСтаттями[Дата виставлення рахунка-фактури],\">=\"&F$3,ВитратиЗаСтаттями[Дата виставлення рахунка-фактури],\"<=\"&F$4)+SUMIFS(Інше[Сума чека],Інше[Код головної книги],ЗведенняЩомісячнихВитрат[[#This Row],[Код головної книги]],Інше[Дата ініціювання запиту на платіж],\">=\"\" 1, \"&DATEVALUE(ЗведенняЩомісячнихВитрат[[#Headers],[Березень]]&_xlfn.SINGLE(_РІК)),Інше[Дата ініціювання запиту на платіж],\"<=\"&F$4)","v":{"v":0,"d":"0.00₴"}},{"$f":"SUMIFS(ВитратиЗаСтаттями[Сума чека],ВитратиЗаСтаттями[Код головної книги],ЗведенняЩомісячнихВитрат[[#This Row],[Код головної книги]],ВитратиЗаСтаттями[Дата виставлення рахунка-фактури],\">=\"&G$3,ВитратиЗаСтаттями[Дата виставлення рахунка-фактури],\"<=\"&G$4)+SUMIFS(Інше[Сума чека],Інше[Код головної книги],ЗведенняЩомісячнихВитрат[[#This Row],[Код головної книги]],Інше[Дата ініціювання запиту на платіж],\">=\"\" 1, \"&DATEVALUE(ЗведенняЩомісячнихВитрат[[#Headers],[Квітень]]&_xlfn.SINGLE(_РІК)),Інше[Дата ініціювання запиту на платіж],\"<=\"&G$4)","v":{"v":0,"d":"0.00₴"}},{"$f":"SUMIFS(ВитратиЗаСтаттями[Сума чека],ВитратиЗаСтаттями[Код головної книги],ЗведенняЩомісячнихВитрат[[#This Row],[Код головної книги]],ВитратиЗаСтаттями[Дата виставлення рахунка-фактури],\">=\"&H$3,ВитратиЗаСтаттями[Дата виставлення рахунка-фактури],\"<=\"&H$4)+SUMIFS(Інше[Сума чека],Інше[Код головної книги],ЗведенняЩомісячнихВитрат[[#This Row],[Код головної книги]],Інше[Дата ініціювання запиту на платіж],\">=\"\" 1, \"&DATEVALUE(ЗведенняЩомісячнихВитрат[[#Headers],[Травень]]&_xlfn.SINGLE(_РІК)),Інше[Дата ініціювання запиту на платіж],\"<=\"&H$4)","v":{"v":0,"d":"0.00₴"}},{"$f":"SUMIFS(ВитратиЗаСтаттями[Сума чека],ВитратиЗаСтаттями[Код головної книги],ЗведенняЩомісячнихВитрат[[#This Row],[Код головної книги]],ВитратиЗаСтаттями[Дата виставлення рахунка-фактури],\">=\"&I$3,ВитратиЗаСтаттями[Дата виставлення рахунка-фактури],\"<=\"&I$4)+SUMIFS(Інше[Сума чека],Інше[Код головної книги],ЗведенняЩомісячнихВитрат[[#This Row],[Код головної книги]],Інше[Дата ініціювання запиту на платіж],\">=\"\" 1, \"&DATEVALUE(ЗведенняЩомісячнихВитрат[[#Headers],[Червень]]&_xlfn.SINGLE(_РІК)),Інше[Дата ініціювання запиту на платіж],\"<=\"&I$4)","v":{"v":0,"d":"0.00₴"}},{"$f":"SUMIFS(ВитратиЗаСтаттями[Сума чека],ВитратиЗаСтаттями[Код головної книги],ЗведенняЩомісячнихВитрат[[#This Row],[Код головної книги]],ВитратиЗаСтаттями[Дата виставлення рахунка-фактури],\">=\"&J$3,ВитратиЗаСтаттями[Дата виставлення рахунка-фактури],\"<=\"&J$4)+SUMIFS(Інше[Сума чека],Інше[Код головної книги],ЗведенняЩомісячнихВитрат[[#This Row],[Код головної книги]],Інше[Дата ініціювання запиту на платіж],\">=\"\" 1, \"&DATEVALUE(ЗведенняЩомісячнихВитрат[[#Headers],[Липень]]&_xlfn.SINGLE(_РІК)),Інше[Дата ініціювання запиту на платіж],\"<=\"&J$4)","v":{"v":0,"d":"0.00₴"}},{"$f":"SUMIFS(ВитратиЗаСтаттями[Сума чека],ВитратиЗаСтаттями[Код головної книги],ЗведенняЩомісячнихВитрат[[#This Row],[Код головної книги]],ВитратиЗаСтаттями[Дата виставлення рахунка-фактури],\">=\"&K$3,ВитратиЗаСтаттями[Дата виставлення рахунка-фактури],\"<=\"&K$4)+SUMIFS(Інше[Сума чека],Інше[Код головної книги],ЗведенняЩомісячнихВитрат[[#This Row],[Код головної книги]],Інше[Дата ініціювання запиту на платіж],\">=\"\" 1, \"&DATEVALUE(ЗведенняЩомісячнихВитрат[[#Headers],[Серпень]]&_xlfn.SINGLE(_РІК)),Інше[Дата ініціювання запиту на платіж],\"<=\"&K$4)","v":{"v":0,"d":"0.00₴"}},{"$f":"SUMIFS(ВитратиЗаСтаттями[Сума чека],ВитратиЗаСтаттями[Код головної книги],ЗведенняЩомісячнихВитрат[[#This Row],[Код головної книги]],ВитратиЗаСтаттями[Дата виставлення рахунка-фактури],\">=\"&L$3,ВитратиЗаСтаттями[Дата виставлення рахунка-фактури],\"<=\"&L$4)+SUMIFS(Інше[Сума чека],Інше[Код головної книги],ЗведенняЩомісячнихВитрат[[#This Row],[Код головної книги]],Інше[Дата ініціювання запиту на платіж],\">=\"\" 1, \"&DATEVALUE(ЗведенняЩомісячнихВитрат[[#Headers],[Вересень]]&_xlfn.SINGLE(_РІК)),Інше[Дата ініціювання запиту на платіж],\"<=\"&L$4)","v":{"v":0,"d":"0.00₴"}},{"$f":"SUMIFS(ВитратиЗаСтаттями[Сума чека],ВитратиЗаСтаттями[Код головної книги],ЗведенняЩомісячнихВитрат[[#This Row],[Код головної книги]],ВитратиЗаСтаттями[Дата виставлення рахунка-фактури],\">=\"&M$3,ВитратиЗаСтаттями[Дата виставлення рахунка-фактури],\"<=\"&M$4)+SUMIFS(Інше[Сума чека],Інше[Код головної книги],ЗведенняЩомісячнихВитрат[[#This Row],[Код головної книги]],Інше[Дата ініціювання запиту на платіж],\">=\"\" 1, \"&DATEVALUE(ЗведенняЩомісячнихВитрат[[#Headers],[Жовтень]]&_xlfn.SINGLE(_РІК)),Інше[Дата ініціювання запиту на платіж],\"<=\"&M$4)","v":{"v":0,"d":"0.00₴"}},{"$f":"SUMIFS(ВитратиЗаСтаттями[Сума чека],ВитратиЗаСтаттями[Код головної книги],ЗведенняЩомісячнихВитрат[[#This Row],[Код головної книги]],ВитратиЗаСтаттями[Дата виставлення рахунка-фактури],\">=\"&N$3,ВитратиЗаСтаттями[Дата виставлення рахунка-фактури],\"<=\"&N$4)+SUMIFS(Інше[Сума чека],Інше[Код головної книги],ЗведенняЩомісячнихВитрат[[#This Row],[Код головної книги]],Інше[Дата ініціювання запиту на платіж],\">=\"\" 1, \"&DATEVALUE(ЗведенняЩомісячнихВитрат[[#Headers],[Листопад]]&_xlfn.SINGLE(_РІК)),Інше[Дата ініціювання запиту на платіж],\"<=\"&N$4)","v":{"v":0,"d":"0.00₴"}},{"$f":"SUMIFS(ВитратиЗаСтаттями[Сума чека],ВитратиЗаСтаттями[Код головної книги],ЗведенняЩомісячнихВитрат[[#This Row],[Код головної книги]],ВитратиЗаСтаттями[Дата виставлення рахунка-фактури],\">=\"&O$3,ВитратиЗаСтаттями[Дата виставлення рахунка-фактури],\"<=\"&O$4)+SUMIFS(Інше[Сума чека],Інше[Код головної книги],ЗведенняЩомісячнихВитрат[[#This Row],[Код головної книги]],Інше[Дата ініціювання запиту на платіж],\">=\"\" 1, \"&DATEVALUE(ЗведенняЩомісячнихВитрат[[#Headers],[Грудень]]&_xlfn.SINGLE(_РІК)),Інше[Дата ініціювання запиту на платіж],\"<=\"&O$4)","v":{"v":0,"d":"0.00₴"}},{"$f":"SUM(ЗведенняЩомісячнихВитрат[[#This Row],[Січень]:[Грудень]])","v":{"v":0,"d":"0.00₴"}}]
[null,2000,"Офісне обладнання",{"$f":"SUMIFS(ВитратиЗаСтаттями[Сума чека],ВитратиЗаСтаттями[Код головної книги],ЗведенняЩомісячнихВитрат[[#This Row],[Код головної книги]],ВитратиЗаСтаттями[Дата виставлення рахунка-фактури],\">=\"&D$3,ВитратиЗаСтаттями[Дата виставлення рахунка-фактури],\"<=\"&D$4)+SUMIFS(Інше[Сума чека],Інше[Код головної книги],ЗведенняЩомісячнихВитрат[[#This Row],[Код головної книги]],Інше[Дата ініціювання запиту на платіж],\">=\"\" 1, \"&DATEVALUE(ЗведенняЩомісячнихВитрат[[#Headers],[Січень]]&_xlfn.SINGLE(_РІК)),Інше[Дата ініціювання запиту на платіж],\"<=\"&D$4)","v":{"v":0,"d":"0.00₴"}},{"$f":"SUMIFS(ВитратиЗаСтаттями[Сума чека],ВитратиЗаСтаттями[Код головної книги],ЗведенняЩомісячнихВитрат[[#This Row],[Код головної книги]],ВитратиЗаСтаттями[Дата виставлення рахунка-фактури],\">=\"&E$3,ВитратиЗаСтаттями[Дата виставлення рахунка-фактури],\"<=\"&E$4)+SUMIFS(Інше[Сума чека],Інше[Код головної книги],ЗведенняЩомісячнихВитрат[[#This Row],[Код головної книги]],Інше[Дата ініціювання запиту на платіж],\">=\"\" 1, \"&DATEVALUE(ЗведенняЩомісячнихВитрат[[#Headers],[Лютий]]&_xlfn.SINGLE(_РІК)),Інше[Дата ініціювання запиту на платіж],\"<=\"&E$4)","v":{"v":0,"d":"0.00₴"}},{"$f":"SUMIFS(ВитратиЗаСтаттями[Сума чека],ВитратиЗаСтаттями[Код головної книги],ЗведенняЩомісячнихВитрат[[#This Row],[Код головної книги]],ВитратиЗаСтаттями[Дата виставлення рахунка-фактури],\">=\"&F$3,ВитратиЗаСтаттями[Дата виставлення рахунка-фактури],\"<=\"&F$4)+SUMIFS(Інше[Сума чека],Інше[Код головної книги],ЗведенняЩомісячнихВитрат[[#This Row],[Код головної книги]],Інше[Дата ініціювання запиту на платіж],\">=\"\" 1, \"&DATEVALUE(ЗведенняЩомісячнихВитрат[[#Headers],[Березень]]&_xlfn.SINGLE(_РІК)),Інше[Дата ініціювання запиту на платіж],\"<=\"&F$4)","v":{"v":0,"d":"0.00₴"}},{"$f":"SUMIFS(ВитратиЗаСтаттями[Сума чека],ВитратиЗаСтаттями[Код головної книги],ЗведенняЩомісячнихВитрат[[#This Row],[Код головної книги]],ВитратиЗаСтаттями[Дата виставлення рахунка-фактури],\">=\"&G$3,ВитратиЗаСтаттями[Дата виставлення рахунка-фактури],\"<=\"&G$4)+SUMIFS(Інше[Сума чека],Інше[Код головної книги],ЗведенняЩомісячнихВитрат[[#This Row],[Код головної книги]],Інше[Дата ініціювання запиту на платіж],\">=\"\" 1, \"&DATEVALUE(ЗведенняЩомісячнихВитрат[[#Headers],[Квітень]]&_xlfn.SINGLE(_РІК)),Інше[Дата ініціювання запиту на платіж],\"<=\"&G$4)","v":{"v":0,"d":"0.00₴"}},{"$f":"SUMIFS(ВитратиЗаСтаттями[Сума чека],ВитратиЗаСтаттями[Код головної книги],ЗведенняЩомісячнихВитрат[[#This Row],[Код головної книги]],ВитратиЗаСтаттями[Дата виставлення рахунка-фактури],\">=\"&H$3,ВитратиЗаСтаттями[Дата виставлення рахунка-фактури],\"<=\"&H$4)+SUMIFS(Інше[Сума чека],Інше[Код головної книги],ЗведенняЩомісячнихВитрат[[#This Row],[Код головної книги]],Інше[Дата ініціювання запиту на платіж],\">=\"\" 1, \"&DATEVALUE(ЗведенняЩомісячнихВитрат[[#Headers],[Травень]]&_xlfn.SINGLE(_РІК)),Інше[Дата ініціювання запиту на платіж],\"<=\"&H$4)","v":{"v":0,"d":"0.00₴"}},{"$f":"SUMIFS(ВитратиЗаСтаттями[Сума чека],ВитратиЗаСтаттями[Код головної книги],ЗведенняЩомісячнихВитрат[[#This Row],[Код головної книги]],ВитратиЗаСтаттями[Дата виставлення рахунка-фактури],\">=\"&I$3,ВитратиЗаСтаттями[Дата виставлення рахунка-фактури],\"<=\"&I$4)+SUMIFS(Інше[Сума чека],Інше[Код головної книги],ЗведенняЩомісячнихВитрат[[#This Row],[Код головної книги]],Інше[Дата ініціювання запиту на платіж],\">=\"\" 1, \"&DATEVALUE(ЗведенняЩомісячнихВитрат[[#Headers],[Червень]]&_xlfn.SINGLE(_РІК)),Інше[Дата ініціювання запиту на платіж],\"<=\"&I$4)","v":{"v":0,"d":"0.00₴"}},{"$f":"SUMIFS(ВитратиЗаСтаттями[Сума чека],ВитратиЗаСтаттями[Код головної книги],ЗведенняЩомісячнихВитрат[[#This Row],[Код головної книги]],ВитратиЗаСтаттями[Дата виставлення рахунка-фактури],\">=\"&J$3,ВитратиЗаСтаттями[Дата виставлення рахунка-фактури],\"<=\"&J$4)+SUMIFS(Інше[Сума чека],Інше[Код головної книги],ЗведенняЩомісячнихВитрат[[#This Row],[Код головної книги]],Інше[Дата ініціювання запиту на платіж],\">=\"\" 1, \"&DATEVALUE(ЗведенняЩомісячнихВитрат[[#Headers],[Липень]]&_xlfn.SINGLE(_РІК)),Інше[Дата ініціювання запиту на платіж],\"<=\"&J$4)","v":{"v":0,"d":"0.00₴"}},{"$f":"SUMIFS(ВитратиЗаСтаттями[Сума чека],ВитратиЗаСтаттями[Код головної книги],ЗведенняЩомісячнихВитрат[[#This Row],[Код головної книги]],ВитратиЗаСтаттями[Дата виставлення рахунка-фактури],\">=\"&K$3,ВитратиЗаСтаттями[Дата виставлення рахунка-фактури],\"<=\"&K$4)+SUMIFS(Інше[Сума чека],Інше[Код головної книги],ЗведенняЩомісячнихВитрат[[#This Row],[Код головної книги]],Інше[Дата ініціювання запиту на платіж],\">=\"\" 1, \"&DATEVALUE(ЗведенняЩомісячнихВитрат[[#Headers],[Серпень]]&_xlfn.SINGLE(_РІК)),Інше[Дата ініціювання запиту на платіж],\"<=\"&K$4)","v":{"v":0,"d":"0.00₴"}},{"$f":"SUMIFS(ВитратиЗаСтаттями[Сума чека],ВитратиЗаСтаттями[Код головної книги],ЗведенняЩомісячнихВитрат[[#This Row],[Код головної книги]],ВитратиЗаСтаттями[Дата виставлення рахунка-фактури],\">=\"&L$3,ВитратиЗаСтаттями[Дата виставлення рахунка-фактури],\"<=\"&L$4)+SUMIFS(Інше[Сума чека],Інше[Код головної книги],ЗведенняЩомісячнихВитрат[[#This Row],[Код головної книги]],Інше[Дата ініціювання запиту на платіж],\">=\"\" 1, \"&DATEVALUE(ЗведенняЩомісячнихВитрат[[#Headers],[Вересень]]&_xlfn.SINGLE(_РІК)),Інше[Дата ініціювання запиту на платіж],\"<=\"&L$4)","v":{"v":0,"d":"0.00₴"}},{"$f":"SUMIFS(ВитратиЗаСтаттями[Сума чека],ВитратиЗаСтаттями[Код головної книги],ЗведенняЩомісячнихВитрат[[#This Row],[Код головної книги]],ВитратиЗаСтаттями[Дата виставлення рахунка-фактури],\">=\"&M$3,ВитратиЗаСтаттями[Дата виставлення рахунка-фактури],\"<=\"&M$4)+SUMIFS(Інше[Сума чека],Інше[Код головної книги],ЗведенняЩомісячнихВитрат[[#This Row],[Код головної книги]],Інше[Дата ініціювання запиту на платіж],\">=\"\" 1, \"&DATEVALUE(ЗведенняЩомісячнихВитрат[[#Headers],[Жовтень]]&_xlfn.SINGLE(_РІК)),Інше[Дата ініціювання запиту на платіж],\"<=\"&M$4)","v":{"v":0,"d":"0.00₴"}},{"$f":"SUMIFS(ВитратиЗаСтаттями[Сума чека],ВитратиЗаСтаттями[Код головної книги],ЗведенняЩомісячнихВитрат[[#This Row],[Код головної книги]],ВитратиЗаСтаттями[Дата виставлення рахунка-фактури],\">=\"&N$3,ВитратиЗаСтаттями[Дата виставлення рахунка-фактури],\"<=\"&N$4)+SUMIFS(Інше[Сума чека],Інше[Код головної книги],ЗведенняЩомісячнихВитрат[[#This Row],[Код головної книги]],Інше[Дата ініціювання запиту на платіж],\">=\"\" 1, \"&DATEVALUE(ЗведенняЩомісячнихВитрат[[#Headers],[Листопад]]&_xlfn.SINGLE(_РІК)),Інше[Дата ініціювання запиту на платіж],\"<=\"&N$4)","v":{"v":0,"d":"0.00₴"}},{"$f":"SUMIFS(ВитратиЗаСтаттями[Сума чека],ВитратиЗаСтаттями[Код головної книги],ЗведенняЩомісячнихВитрат[[#This Row],[Код головної книги]],ВитратиЗаСтаттями[Дата виставлення рахунка-фактури],\">=\"&O$3,ВитратиЗаСтаттями[Дата виставлення рахунка-фактури],\"<=\"&O$4)+SUMIFS(Інше[Сума чека],Інше[Код головної книги],ЗведенняЩомісячнихВитрат[[#This Row],[Код головної книги]],Інше[Дата ініціювання запиту на платіж],\">=\"\" 1, \"&DATEVALUE(ЗведенняЩомісячнихВитрат[[#Headers],[Грудень]]&_xlfn.SINGLE(_РІК)),Інше[Дата ініціювання запиту на платіж],\"<=\"&O$4)","v":{"v":0,"d":"0.00₴"}},{"$f":"SUM(ЗведенняЩомісячнихВитрат[[#This Row],[Січень]:[Грудень]])","v":{"v":0,"d":"0.00₴"}}]
[null,3000,"Принтери",{"$f":"SUMIFS(ВитратиЗаСтаттями[Сума чека],ВитратиЗаСтаттями[Код головної книги],ЗведенняЩомісячнихВитрат[[#This Row],[Код головної книги]],ВитратиЗаСтаттями[Дата виставлення рахунка-фактури],\">=\"&D$3,ВитратиЗаСтаттями[Дата виставлення рахунка-фактури],\"<=\"&D$4)+SUMIFS(Інше[Сума чека],Інше[Код головної книги],ЗведенняЩомісячнихВитрат[[#This Row],[Код головної книги]],Інше[Дата ініціювання запиту на платіж],\">=\"\" 1, \"&DATEVALUE(ЗведенняЩомісячнихВитрат[[#Headers],[Січень]]&_xlfn.SINGLE(_РІК)),Інше[Дата ініціювання запиту на платіж],\"<=\"&D$4)","v":{"v":0,"d":"0.00₴"}},{"$f":"SUMIFS(ВитратиЗаСтаттями[Сума чека],ВитратиЗаСтаттями[Код головної книги],ЗведенняЩомісячнихВитрат[[#This Row],[Код головної книги]],ВитратиЗаСтаттями[Дата виставлення рахунка-фактури],\">=\"&E$3,ВитратиЗаСтаттями[Дата виставлення рахунка-фактури],\"<=\"&E$4)+SUMIFS(Інше[Сума чека],Інше[Код головної книги],ЗведенняЩомісячнихВитрат[[#This Row],[Код головної книги]],Інше[Дата ініціювання запиту на платіж],\">=\"\" 1, \"&DATEVALUE(ЗведенняЩомісячнихВитрат[[#Headers],[Лютий]]&_xlfn.SINGLE(_РІК)),Інше[Дата ініціювання запиту на платіж],\"<=\"&E$4)","v":{"v":0,"d":"0.00₴"}},{"$f":"SUMIFS(ВитратиЗаСтаттями[Сума чека],ВитратиЗаСтаттями[Код головної книги],ЗведенняЩомісячнихВитрат[[#This Row],[Код головної книги]],ВитратиЗаСтаттями[Дата виставлення рахунка-фактури],\">=\"&F$3,ВитратиЗаСтаттями[Дата виставлення рахунка-фактури],\"<=\"&F$4)+SUMIFS(Інше[Сума чека],Інше[Код головної книги],ЗведенняЩомісячнихВитрат[[#This Row],[Код головної книги]],Інше[Дата ініціювання запиту на платіж],\">=\"\" 1, \"&DATEVALUE(ЗведенняЩомісячнихВитрат[[#Headers],[Березень]]&_xlfn.SINGLE(_РІК)),Інше[Дата ініціювання запиту на платіж],\"<=\"&F$4)","v":{"v":0,"d":"0.00₴"}},{"$f":"SUMIFS(ВитратиЗаСтаттями[Сума чека],ВитратиЗаСтаттями[Код головної книги],ЗведенняЩомісячнихВитрат[[#This Row],[Код головної книги]],ВитратиЗаСтаттями[Дата виставлення рахунка-фактури],\">=\"&G$3,ВитратиЗаСтаттями[Дата виставлення рахунка-фактури],\"<=\"&G$4)+SUMIFS(Інше[Сума чека],Інше[Код головної книги],ЗведенняЩомісячнихВитрат[[#This Row],[Код головної книги]],Інше[Дата ініціювання запиту на платіж],\">=\"\" 1, \"&DATEVALUE(ЗведенняЩомісячнихВитрат[[#Headers],[Квітень]]&_xlfn.SINGLE(_РІК)),Інше[Дата ініціювання запиту на платіж],\"<=\"&G$4)","v":{"v":0,"d":"0.00₴"}},{"$f":"SUMIFS(ВитратиЗаСтаттями[Сума чека],ВитратиЗаСтаттями[Код головної книги],ЗведенняЩомісячнихВитрат[[#This Row],[Код головної книги]],ВитратиЗаСтаттями[Дата виставлення рахунка-фактури],\">=\"&H$3,ВитратиЗаСтаттями[Дата виставлення рахунка-фактури],\"<=\"&H$4)+SUMIFS(Інше[Сума чека],Інше[Код головної книги],ЗведенняЩомісячнихВитрат[[#This Row],[Код головної книги]],Інше[Дата ініціювання запиту на платіж],\">=\"\" 1, \"&DATEVALUE(ЗведенняЩомісячнихВитрат[[#Headers],[Травень]]&_xlfn.SINGLE(_РІК)),Інше[Дата ініціювання запиту на платіж],\"<=\"&H$4)","v":{"v":0,"d":"0.00₴"}},{"$f":"SUMIFS(ВитратиЗаСтаттями[Сума чека],ВитратиЗаСтаттями[Код головної книги],ЗведенняЩомісячнихВитрат[[#This Row],[Код головної книги]],ВитратиЗаСтаттями[Дата виставлення рахунка-фактури],\">=\"&I$3,ВитратиЗаСтаттями[Дата виставлення рахунка-фактури],\"<=\"&I$4)+SUMIFS(Інше[Сума чека],Інше[Код головної книги],ЗведенняЩомісячнихВитрат[[#This Row],[Код головної книги]],Інше[Дата ініціювання запиту на платіж],\">=\"\" 1, \"&DATEVALUE(ЗведенняЩомісячнихВитрат[[#Headers],[Червень]]&_xlfn.SINGLE(_РІК)),Інше[Дата ініціювання запиту на платіж],\"<=\"&I$4)","v":{"v":0,"d":"0.00₴"}},{"$f":"SUMIFS(ВитратиЗаСтаттями[Сума чека],ВитратиЗаСтаттями[Код головної книги],ЗведенняЩомісячнихВитрат[[#This Row],[Код головної книги]],ВитратиЗаСтаттями[Дата виставлення рахунка-фактури],\">=\"&J$3,ВитратиЗаСтаттями[Дата виставлення рахунка-фактури],\"<=\"&J$4)+SUMIFS(Інше[Сума чека],Інше[Код головної книги],ЗведенняЩомісячнихВитрат[[#This Row],[Код головної книги]],Інше[Дата ініціювання запиту на платіж],\">=\"\" 1, \"&DATEVALUE(ЗведенняЩомісячнихВитрат[[#Headers],[Липень]]&_xlfn.SINGLE(_РІК)),Інше[Дата ініціювання запиту на платіж],\"<=\"&J$4)","v":{"v":0,"d":"0.00₴"}},{"$f":"SUMIFS(ВитратиЗаСтаттями[Сума чека],ВитратиЗаСтаттями[Код головної книги],ЗведенняЩомісячнихВитрат[[#This Row],[Код головної книги]],ВитратиЗаСтаттями[Дата виставлення рахунка-фактури],\">=\"&K$3,ВитратиЗаСтаттями[Дата виставлення рахунка-фактури],\"<=\"&K$4)+SUMIFS(Інше[Сума чека],Інше[Код головної книги],ЗведенняЩомісячнихВитрат[[#This Row],[Код головної книги]],Інше[Дата ініціювання запиту на платіж],\">=\"\" 1, \"&DATEVALUE(ЗведенняЩомісячнихВитрат[[#Headers],[Серпень]]&_xlfn.SINGLE(_РІК)),Інше[Дата ініціювання запиту на платіж],\"<=\"&K$4)","v":{"v":0,"d":"0.00₴"}},{"$f":"SUMIFS(ВитратиЗаСтаттями[Сума чека],ВитратиЗаСтаттями[Код головної книги],ЗведенняЩомісячнихВитрат[[#This Row],[Код головної книги]],ВитратиЗаСтаттями[Дата виставлення рахунка-фактури],\">=\"&L$3,ВитратиЗаСтаттями[Дата виставлення рахунка-фактури],\"<=\"&L$4)+SUMIFS(Інше[Сума чека],Інше[Код головної книги],ЗведенняЩомісячнихВитрат[[#This Row],[Код головної книги]],Інше[Дата ініціювання запиту на платіж],\">=\"\" 1, \"&DATEVALUE(ЗведенняЩомісячнихВитрат[[#Headers],[Вересень]]&_xlfn.SINGLE(_РІК)),Інше[Дата ініціювання запиту на платіж],\"<=\"&L$4)","v":{"v":0,"d":"0.00₴"}},{"$f":"SUMIFS(ВитратиЗаСтаттями[Сума чека],ВитратиЗаСтаттями[Код головної книги],ЗведенняЩомісячнихВитрат[[#This Row],[Код головної книги]],ВитратиЗаСтаттями[Дата виставлення рахунка-фактури],\">=\"&M$3,ВитратиЗаСтаттями[Дата виставлення рахунка-фактури],\"<=\"&M$4)+SUMIFS(Інше[Сума чека],Інше[Код головної книги],ЗведенняЩомісячнихВитрат[[#This Row],[Код головної книги]],Інше[Дата ініціювання запиту на платіж],\">=\"\" 1, \"&DATEVALUE(ЗведенняЩомісячнихВитрат[[#Headers],[Жовтень]]&_xlfn.SINGLE(_РІК)),Інше[Дата ініціювання запиту на платіж],\"<=\"&M$4)","v":{"v":0,"d":"0.00₴"}},{"$f":"SUMIFS(ВитратиЗаСтаттями[Сума чека],ВитратиЗаСтаттями[Код головної книги],ЗведенняЩомісячнихВитрат[[#This Row],[Код головної книги]],ВитратиЗаСтаттями[Дата виставлення рахунка-фактури],\">=\"&N$3,ВитратиЗаСтаттями[Дата виставлення рахунка-фактури],\"<=\"&N$4)+SUMIFS(Інше[Сума чека],Інше[Код головної книги],ЗведенняЩомісячнихВитрат[[#This Row],[Код головної книги]],Інше[Дата ініціювання запиту на платіж],\">=\"\" 1, \"&DATEVALUE(ЗведенняЩомісячнихВитрат[[#Headers],[Листопад]]&_xlfn.SINGLE(_РІК)),Інше[Дата ініціювання запиту на платіж],\"<=\"&N$4)","v":{"v":0,"d":"0.00₴"}},{"$f":"SUMIFS(ВитратиЗаСтаттями[Сума чека],ВитратиЗаСтаттями[Код головної книги],ЗведенняЩомісячнихВитрат[[#This Row],[Код головної книги]],ВитратиЗаСтаттями[Дата виставлення рахунка-фактури],\">=\"&O$3,ВитратиЗаСтаттями[Дата виставлення рахунка-фактури],\"<=\"&O$4)+SUMIFS(Інше[Сума чека],Інше[Код головної книги],ЗведенняЩомісячнихВитрат[[#This Row],[Код головної книги]],Інше[Дата ініціювання запиту на платіж],\">=\"\" 1, \"&DATEVALUE(ЗведенняЩомісячнихВитрат[[#Headers],[Грудень]]&_xlfn.SINGLE(_РІК)),Інше[Дата ініціювання запиту на платіж],\"<=\"&O$4)","v":{"v":0,"d":"0.00₴"}},{"$f":"SUM(ЗведенняЩомісячнихВитрат[[#This Row],[Січень]:[Грудень]])","v":{"v":0,"d":"0.00₴"}}]
[null,4000,"Витрати на сервер",{"$f":"SUMIFS(ВитратиЗаСтаттями[Сума чека],ВитратиЗаСтаттями[Код головної книги],ЗведенняЩомісячнихВитрат[[#This Row],[Код головної книги]],ВитратиЗаСтаттями[Дата виставлення рахунка-фактури],\">=\"&D$3,ВитратиЗаСтаттями[Дата виставлення рахунка-фактури],\"<=\"&D$4)+SUMIFS(Інше[Сума чека],Інше[Код головної книги],ЗведенняЩомісячнихВитрат[[#This Row],[Код головної книги]],Інше[Дата ініціювання запиту на платіж],\">=\"\" 1, \"&DATEVALUE(ЗведенняЩомісячнихВитрат[[#Headers],[Січень]]&_xlfn.SINGLE(_РІК)),Інше[Дата ініціювання запиту на платіж],\"<=\"&D$4)","v":{"v":0,"d":"0.00₴"}},{"$f":"SUMIFS(ВитратиЗаСтаттями[Сума чека],ВитратиЗаСтаттями[Код головної книги],ЗведенняЩомісячнихВитрат[[#This Row],[Код головної книги]],ВитратиЗаСтаттями[Дата виставлення рахунка-фактури],\">=\"&E$3,ВитратиЗаСтаттями[Дата виставлення рахунка-фактури],\"<=\"&E$4)+SUMIFS(Інше[Сума чека],Інше[Код головної книги],ЗведенняЩомісячнихВитрат[[#This Row],[Код головної книги]],Інше[Дата ініціювання запиту на платіж],\">=\"\" 1, \"&DATEVALUE(ЗведенняЩомісячнихВитрат[[#Headers],[Лютий]]&_xlfn.SINGLE(_РІК)),Інше[Дата ініціювання запиту на платіж],\"<=\"&E$4)","v":{"v":0,"d":"0.00₴"}},{"$f":"SUMIFS(ВитратиЗаСтаттями[Сума чека],ВитратиЗаСтаттями[Код головної книги],ЗведенняЩомісячнихВитрат[[#This Row],[Код головної книги]],ВитратиЗаСтаттями[Дата виставлення рахунка-фактури],\">=\"&F$3,ВитратиЗаСтаттями[Дата виставлення рахунка-фактури],\"<=\"&F$4)+SUMIFS(Інше[Сума чека],Інше[Код головної книги],ЗведенняЩомісячнихВитрат[[#This Row],[Код головної книги]],Інше[Дата ініціювання запиту на платіж],\">=\"\" 1, \"&DATEVALUE(ЗведенняЩомісячнихВитрат[[#Headers],[Березень]]&_xlfn.SINGLE(_РІК)),Інше[Дата ініціювання запиту на платіж],\"<=\"&F$4)","v":{"v":0,"d":"0.00₴"}},{"$f":"SUMIFS(ВитратиЗаСтаттями[Сума чека],ВитратиЗаСтаттями[Код головної книги],ЗведенняЩомісячнихВитрат[[#This Row],[Код головної книги]],ВитратиЗаСтаттями[Дата виставлення рахунка-фактури],\">=\"&G$3,ВитратиЗаСтаттями[Дата виставлення рахунка-фактури],\"<=\"&G$4)+SUMIFS(Інше[Сума чека],Інше[Код головної книги],ЗведенняЩомісячнихВитрат[[#This Row],[Код головної книги]],Інше[Дата ініціювання запиту на платіж],\">=\"\" 1, \"&DATEVALUE(ЗведенняЩомісячнихВитрат[[#Headers],[Квітень]]&_xlfn.SINGLE(_РІК)),Інше[Дата ініціювання запиту на платіж],\"<=\"&G$4)","v":{"v":0,"d":"0.00₴"}},{"$f":"SUMIFS(ВитратиЗаСтаттями[Сума чека],ВитратиЗаСтаттями[Код головної книги],ЗведенняЩомісячнихВитрат[[#This Row],[Код головної книги]],ВитратиЗаСтаттями[Дата виставлення рахунка-фактури],\">=\"&H$3,ВитратиЗаСтаттями[Дата виставлення рахунка-фактури],\"<=\"&H$4)+SUMIFS(Інше[Сума чека],Інше[Код головної книги],ЗведенняЩомісячнихВитрат[[#This Row],[Код головної книги]],Інше[Дата ініціювання запиту на платіж],\">=\"\" 1, \"&DATEVALUE(ЗведенняЩомісячнихВитрат[[#Headers],[Травень]]&_xlfn.SINGLE(_РІК)),Інше[Дата ініціювання запиту на платіж],\"<=\"&H$4)","v":{"v":0,"d":"0.00₴"}},{"$f":"SUMIFS(ВитратиЗаСтаттями[Сума чека],ВитратиЗаСтаттями[Код головної книги],ЗведенняЩомісячнихВитрат[[#This Row],[Код головної книги]],ВитратиЗаСтаттями[Дата виставлення рахунка-фактури],\">=\"&I$3,ВитратиЗаСтаттями[Дата виставлення рахунка-фактури],\"<=\"&I$4)+SUMIFS(Інше[Сума чека],Інше[Код головної книги],ЗведенняЩомісячнихВитрат[[#This Row],[Код головної книги]],Інше[Дата ініціювання запиту на платіж],\">=\"\" 1, \"&DATEVALUE(ЗведенняЩомісячнихВитрат[[#Headers],[Червень]]&_xlfn.SINGLE(_РІК)),Інше[Дата ініціювання запиту на платіж],\"<=\"&I$4)","v":{"v":0,"d":"0.00₴"}},{"$f":"SUMIFS(ВитратиЗаСтаттями[Сума чека],ВитратиЗаСтаттями[Код головної книги],ЗведенняЩомісячнихВитрат[[#This Row],[Код головної книги]],ВитратиЗаСтаттями[Дата виставлення рахунка-фактури],\">=\"&J$3,ВитратиЗаСтаттями[Дата виставлення рахунка-фактури],\"<=\"&J$4)+SUMIFS(Інше[Сума чека],Інше[Код головної книги],ЗведенняЩомісячнихВитрат[[#This Row],[Код головної книги]],Інше[Дата ініціювання запиту на платіж],\">=\"\" 1, \"&DATEVALUE(ЗведенняЩомісячнихВитрат[[#Headers],[Липень]]&_xlfn.SINGLE(_РІК)),Інше[Дата ініціювання запиту на платіж],\"<=\"&J$4)","v":{"v":0,"d":"0.00₴"}},{"$f":"SUMIFS(ВитратиЗаСтаттями[Сума чека],ВитратиЗаСтаттями[Код головної книги],ЗведенняЩомісячнихВитрат[[#This Row],[Код головної книги]],ВитратиЗаСтаттями[Дата виставлення рахунка-фактури],\">=\"&K$3,ВитратиЗаСтаттями[Дата виставлення рахунка-фактури],\"<=\"&K$4)+SUMIFS(Інше[Сума чека],Інше[Код головної книги],ЗведенняЩомісячнихВитрат[[#This Row],[Код головної книги]],Інше[Дата ініціювання запиту на платіж],\">=\"\" 1, \"&DATEVALUE(ЗведенняЩомісячнихВитрат[[#Headers],[Серпень]]&_xlfn.SINGLE(_РІК)),Інше[Дата ініціювання запиту на платіж],\"<=\"&K$4)","v":{"v":0,"d":"0.00₴"}},{"$f":"SUMIFS(ВитратиЗаСтаттями[Сума чека],ВитратиЗаСтаттями[Код головної книги],ЗведенняЩомісячнихВитрат[[#This Row],[Код головної книги]],ВитратиЗаСтаттями[Дата виставлення рахунка-фактури],\">=\"&L$3,ВитратиЗаСтаттями[Дата виставлення рахунка-фактури],\"<=\"&L$4)+SUMIFS(Інше[Сума чека],Інше[Код головної книги],ЗведенняЩомісячнихВитрат[[#This Row],[Код головної книги]],Інше[Дата ініціювання запиту на платіж],\">=\"\" 1, \"&DATEVALUE(ЗведенняЩомісячнихВитрат[[#Headers],[Вересень]]&_xlfn.SINGLE(_РІК)),Інше[Дата ініціювання запиту на платіж],\"<=\"&L$4)","v":{"v":0,"d":"0.00₴"}},{"$f":"SUMIFS(ВитратиЗаСтаттями[Сума чека],ВитратиЗаСтаттями[Код головної книги],ЗведенняЩомісячнихВитрат[[#This Row],[Код головної книги]],ВитратиЗаСтаттями[Дата виставлення рахунка-фактури],\">=\"&M$3,ВитратиЗаСтаттями[Дата виставлення рахунка-фактури],\"<=\"&M$4)+SUMIFS(Інше[Сума чека],Інше[Код головної книги],ЗведенняЩомісячнихВитрат[[#This Row],[Код головної книги]],Інше[Дата ініціювання запиту на платіж],\">=\"\" 1, \"&DATEVALUE(ЗведенняЩомісячнихВитрат[[#Headers],[Жовтень]]&_xlfn.SINGLE(_РІК)),Інше[Дата ініціювання запиту на платіж],\"<=\"&M$4)","v":{"v":0,"d":"0.00₴"}},{"$f":"SUMIFS(ВитратиЗаСтаттями[Сума чека],ВитратиЗаСтаттями[Код головної книги],ЗведенняЩомісячнихВитрат[[#This Row],[Код головної книги]],ВитратиЗаСтаттями[Дата виставлення рахунка-фактури],\">=\"&N$3,ВитратиЗаСтаттями[Дата виставлення рахунка-фактури],\"<=\"&N$4)+SUMIFS(Інше[Сума чека],Інше[Код головної книги],ЗведенняЩомісячнихВитрат[[#This Row],[Код головної книги]],Інше[Дата ініціювання запиту на платіж],\">=\"\" 1, \"&DATEVALUE(ЗведенняЩомісячнихВитрат[[#Headers],[Листопад]]&_xlfn.SINGLE(_РІК)),Інше[Дата ініціювання запиту на платіж],\"<=\"&N$4)","v":{"v":0,"d":"0.00₴"}},{"$f":"SUMIFS(ВитратиЗаСтаттями[Сума чека],ВитратиЗаСтаттями[Код головної книги],ЗведенняЩомісячнихВитрат[[#This Row],[Код головної книги]],ВитратиЗаСтаттями[Дата виставлення рахунка-фактури],\">=\"&O$3,ВитратиЗаСтаттями[Дата виставлення рахунка-фактури],\"<=\"&O$4)+SUMIFS(Інше[Сума чека],Інше[Код головної книги],ЗведенняЩомісячнихВитрат[[#This Row],[Код головної книги]],Інше[Дата ініціювання запиту на платіж],\">=\"\" 1, \"&DATEVALUE(ЗведенняЩомісячнихВитрат[[#Headers],[Грудень]]&_xlfn.SINGLE(_РІК)),Інше[Дата ініціювання запиту на платіж],\"<=\"&O$4)","v":{"v":0,"d":"0.00₴"}},{"$f":"SUM(ЗведенняЩомісячнихВитрат[[#This Row],[Січень]:[Грудень]])","v":{"v":0,"d":"0.00₴"}}]
[null,5000,"Господарські товари",{"$f":"SUMIFS(ВитратиЗаСтаттями[Сума чека],ВитратиЗаСтаттями[Код головної книги],ЗведенняЩомісячнихВитрат[[#This Row],[Код головної книги]],ВитратиЗаСтаттями[Дата виставлення рахунка-фактури],\">=\"&D$3,ВитратиЗаСтаттями[Дата виставлення рахунка-фактури],\"<=\"&D$4)+SUMIFS(Інше[Сума чека],Інше[Код головної книги],ЗведенняЩомісячнихВитрат[[#This Row],[Код головної книги]],Інше[Дата ініціювання запиту на платіж],\">=\"\" 1, \"&DATEVALUE(ЗведенняЩомісячнихВитрат[[#Headers],[Січень]]&_xlfn.SINGLE(_РІК)),Інше[Дата ініціювання запиту на платіж],\"<=\"&D$4)","v":{"v":0,"d":"0.00₴"}},{"$f":"SUMIFS(ВитратиЗаСтаттями[Сума чека],ВитратиЗаСтаттями[Код головної книги],ЗведенняЩомісячнихВитрат[[#This Row],[Код головної книги]],ВитратиЗаСтаттями[Дата виставлення рахунка-фактури],\">=\"&E$3,ВитратиЗаСтаттями[Дата виставлення рахунка-фактури],\"<=\"&E$4)+SUMIFS(Інше[Сума чека],Інше[Код головної книги],ЗведенняЩомісячнихВитрат[[#This Row],[Код головної книги]],Інше[Дата ініціювання запиту на платіж],\">=\"\" 1, \"&DATEVALUE(ЗведенняЩомісячнихВитрат[[#Headers],[Лютий]]&_xlfn.SINGLE(_РІК)),Інше[Дата ініціювання запиту на платіж],\"<=\"&E$4)","v":{"v":0,"d":"0.00₴"}},{"$f":"SUMIFS(ВитратиЗаСтаттями[Сума чека],ВитратиЗаСтаттями[Код головної книги],ЗведенняЩомісячнихВитрат[[#This Row],[Код головної книги]],ВитратиЗаСтаттями[Дата виставлення рахунка-фактури],\">=\"&F$3,ВитратиЗаСтаттями[Дата виставлення рахунка-фактури],\"<=\"&F$4)+SUMIFS(Інше[Сума чека],Інше[Код головної книги],ЗведенняЩомісячнихВитрат[[#This Row],[Код головної книги]],Інше[Дата ініціювання запиту на платіж],\">=\"\" 1, \"&DATEVALUE(ЗведенняЩомісячнихВитрат[[#Headers],[Березень]]&_xlfn.SINGLE(_РІК)),Інше[Дата ініціювання запиту на платіж],\"<=\"&F$4)","v":{"v":0,"d":"0.00₴"}},{"$f":"SUMIFS(ВитратиЗаСтаттями[Сума чека],ВитратиЗаСтаттями[Код головної книги],ЗведенняЩомісячнихВитрат[[#This Row],[Код головної книги]],ВитратиЗаСтаттями[Дата виставлення рахунка-фактури],\">=\"&G$3,ВитратиЗаСтаттями[Дата виставлення рахунка-фактури],\"<=\"&G$4)+SUMIFS(Інше[Сума чека],Інше[Код головної книги],ЗведенняЩомісячнихВитрат[[#This Row],[Код головної книги]],Інше[Дата ініціювання запиту на платіж],\">=\"\" 1, \"&DATEVALUE(ЗведенняЩомісячнихВитрат[[#Headers],[Квітень]]&_xlfn.SINGLE(_РІК)),Інше[Дата ініціювання запиту на платіж],\"<=\"&G$4)","v":{"v":0,"d":"0.00₴"}},{"$f":"SUMIFS(ВитратиЗаСтаттями[Сума чека],ВитратиЗаСтаттями[Код головної книги],ЗведенняЩомісячнихВитрат[[#This Row],[Код головної книги]],ВитратиЗаСтаттями[Дата виставлення рахунка-фактури],\">=\"&H$3,ВитратиЗаСтаттями[Дата виставлення рахунка-фактури],\"<=\"&H$4)+SUMIFS(Інше[Сума чека],Інше[Код головної книги],ЗведенняЩомісячнихВитрат[[#This Row],[Код головної книги]],Інше[Дата ініціювання запиту на платіж],\">=\"\" 1, \"&DATEVALUE(ЗведенняЩомісячнихВитрат[[#Headers],[Травень]]&_xlfn.SINGLE(_РІК)),Інше[Дата ініціювання запиту на платіж],\"<=\"&H$4)","v":{"v":0,"d":"0.00₴"}},{"$f":"SUMIFS(ВитратиЗаСтаттями[Сума чека],ВитратиЗаСтаттями[Код головної книги],ЗведенняЩомісячнихВитрат[[#This Row],[Код головної книги]],ВитратиЗаСтаттями[Дата виставлення рахунка-фактури],\">=\"&I$3,ВитратиЗаСтаттями[Дата виставлення рахунка-фактури],\"<=\"&I$4)+SUMIFS(Інше[Сума чека],Інше[Код головної книги],ЗведенняЩомісячнихВитрат[[#This Row],[Код головної книги]],Інше[Дата ініціювання запиту на платіж],\">=\"\" 1, \"&DATEVALUE(ЗведенняЩомісячнихВитрат[[#Headers],[Червень]]&_xlfn.SINGLE(_РІК)),Інше[Дата ініціювання запиту на платіж],\"<=\"&I$4)","v":{"v":0,"d":"0.00₴"}},{"$f":"SUMIFS(ВитратиЗаСтаттями[Сума чека],ВитратиЗаСтаттями[Код головної книги],ЗведенняЩомісячнихВитрат[[#This Row],[Код головної книги]],ВитратиЗаСтаттями[Дата виставлення рахунка-фактури],\">=\"&J$3,ВитратиЗаСтаттями[Дата виставлення рахунка-фактури],\"<=\"&J$4)+SUMIFS(Інше[Сума чека],Інше[Код головної книги],ЗведенняЩомісячнихВитрат[[#This Row],[Код головної книги]],Інше[Дата ініціювання запиту на платіж],\">=\"\" 1, \"&DATEVALUE(ЗведенняЩомісячнихВитрат[[#Headers],[Липень]]&_xlfn.SINGLE(_РІК)),Інше[Дата ініціювання запиту на платіж],\"<=\"&J$4)","v":{"v":0,"d":"0.00₴"}},{"$f":"SUMIFS(ВитратиЗаСтаттями[Сума чека],ВитратиЗаСтаттями[Код головної книги],ЗведенняЩомісячнихВитрат[[#This Row],[Код головної книги]],ВитратиЗаСтаттями[Дата виставлення рахунка-фактури],\">=\"&K$3,ВитратиЗаСтаттями[Дата виставлення рахунка-фактури],\"<=\"&K$4)+SUMIFS(Інше[Сума чека],Інше[Код головної книги],ЗведенняЩомісячнихВитрат[[#This Row],[Код головної книги]],Інше[Дата ініціювання запиту на платіж],\">=\"\" 1, \"&DATEVALUE(ЗведенняЩомісячнихВитрат[[#Headers],[Серпень]]&_xlfn.SINGLE(_РІК)),Інше[Дата ініціювання запиту на платіж],\"<=\"&K$4)","v":{"v":0,"d":"0.00₴"}},{"$f":"SUMIFS(ВитратиЗаСтаттями[Сума чека],ВитратиЗаСтаттями[Код головної книги],ЗведенняЩомісячнихВитрат[[#This Row],[Код головної книги]],ВитратиЗаСтаттями[Дата виставлення рахунка-фактури],\">=\"&L$3,ВитратиЗаСтаттями[Дата виставлення рахунка-фактури],\"<=\"&L$4)+SUMIFS(Інше[Сума чека],Інше[Код головної книги],ЗведенняЩомісячнихВитрат[[#This Row],[Код головної книги]],Інше[Дата ініціювання запиту на платіж],\">=\"\" 1, \"&DATEVALUE(ЗведенняЩомісячнихВитрат[[#Headers],[Вересень]]&_xlfn.SINGLE(_РІК)),Інше[Дата ініціювання запиту на платіж],\"<=\"&L$4)","v":{"v":0,"d":"0.00₴"}},{"$f":"SUMIFS(ВитратиЗаСтаттями[Сума чека],ВитратиЗаСтаттями[Код головної книги],ЗведенняЩомісячнихВитрат[[#This Row],[Код головної книги]],ВитратиЗаСтаттями[Дата виставлення рахунка-фактури],\">=\"&M$3,ВитратиЗаСтаттями[Дата виставлення рахунка-фактури],\"<=\"&M$4)+SUMIFS(Інше[Сума чека],Інше[Код головної книги],ЗведенняЩомісячнихВитрат[[#This Row],[Код головної книги]],Інше[Дата ініціювання запиту на платіж],\">=\"\" 1, \"&DATEVALUE(ЗведенняЩомісячнихВитрат[[#Headers],[Жовтень]]&_xlfn.SINGLE(_РІК)),Інше[Дата ініціювання запиту на платіж],\"<=\"&M$4)","v":{"v":0,"d":"0.00₴"}},{"$f":"SUMIFS(ВитратиЗаСтаттями[Сума чека],ВитратиЗаСтаттями[Код головної книги],ЗведенняЩомісячнихВитрат[[#This Row],[Код головної книги]],ВитратиЗаСтаттями[Дата виставлення рахунка-фактури],\">=\"&N$3,ВитратиЗаСтаттями[Дата виставлення рахунка-фактури],\"<=\"&N$4)+SUMIFS(Інше[Сума чека],Інше[Код головної книги],ЗведенняЩомісячнихВитрат[[#This Row],[Код головної книги]],Інше[Дата ініціювання запиту на платіж],\">=\"\" 1, \"&DATEVALUE(ЗведенняЩомісячнихВитрат[[#Headers],[Листопад]]&_xlfn.SINGLE(_РІК)),Інше[Дата ініціювання запиту на платіж],\"<=\"&N$4)","v":{"v":0,"d":"0.00₴"}},{"$f":"SUMIFS(ВитратиЗаСтаттями[Сума чека],ВитратиЗаСтаттями[Код головної книги],ЗведенняЩомісячнихВитрат[[#This Row],[Код головної книги]],ВитратиЗаСтаттями[Дата виставлення рахунка-фактури],\">=\"&O$3,ВитратиЗаСтаттями[Дата виставлення рахунка-фактури],\"<=\"&O$4)+SUMIFS(Інше[Сума чека],Інше[Код головної книги],ЗведенняЩомісячнихВитрат[[#This Row],[Код головної книги]],Інше[Дата ініціювання запиту на платіж],\">=\"\" 1, \"&DATEVALUE(ЗведенняЩомісячнихВитрат[[#Headers],[Грудень]]&_xlfn.SINGLE(_РІК)),Інше[Дата ініціювання запиту на платіж],\"<=\"&O$4)","v":{"v":0,"d":"0.00₴"}},{"$f":"SUM(ЗведенняЩомісячнихВитрат[[#This Row],[Січень]:[Грудень]])","v":{"v":0,"d":"0.00₴"}}]
[null,6000,"Витрати на клієнтів",{"$f":"SUMIFS(ВитратиЗаСтаттями[Сума чека],ВитратиЗаСтаттями[Код головної книги],ЗведенняЩомісячнихВитрат[[#This Row],[Код головної книги]],ВитратиЗаСтаттями[Дата виставлення рахунка-фактури],\">=\"&D$3,ВитратиЗаСтаттями[Дата виставлення рахунка-фактури],\"<=\"&D$4)+SUMIFS(Інше[Сума чека],Інше[Код головної книги],ЗведенняЩомісячнихВитрат[[#This Row],[Код головної книги]],Інше[Дата ініціювання запиту на платіж],\">=\"\" 1, \"&DATEVALUE(ЗведенняЩомісячнихВитрат[[#Headers],[Січень]]&_xlfn.SINGLE(_РІК)),Інше[Дата ініціювання запиту на платіж],\"<=\"&D$4)","v":{"v":0,"d":"0.00₴"}},{"$f":"SUMIFS(ВитратиЗаСтаттями[Сума чека],ВитратиЗаСтаттями[Код головної книги],ЗведенняЩомісячнихВитрат[[#This Row],[Код головної книги]],ВитратиЗаСтаттями[Дата виставлення рахунка-фактури],\">=\"&E$3,ВитратиЗаСтаттями[Дата виставлення рахунка-фактури],\"<=\"&E$4)+SUMIFS(Інше[Сума чека],Інше[Код головної книги],ЗведенняЩомісячнихВитрат[[#This Row],[Код головної книги]],Інше[Дата ініціювання запиту на платіж],\">=\"\" 1, \"&DATEVALUE(ЗведенняЩомісячнихВитрат[[#Headers],[Лютий]]&_xlfn.SINGLE(_РІК)),Інше[Дата ініціювання запиту на платіж],\"<=\"&E$4)","v":{"v":0,"d":"0.00₴"}},{"$f":"SUMIFS(ВитратиЗаСтаттями[Сума чека],ВитратиЗаСтаттями[Код головної книги],ЗведенняЩомісячнихВитрат[[#This Row],[Код головної книги]],ВитратиЗаСтаттями[Дата виставлення рахунка-фактури],\">=\"&F$3,ВитратиЗаСтаттями[Дата виставлення рахунка-фактури],\"<=\"&F$4)+SUMIFS(Інше[Сума чека],Інше[Код головної книги],ЗведенняЩомісячнихВитрат[[#This Row],[Код головної книги]],Інше[Дата ініціювання запиту на платіж],\">=\"\" 1, \"&DATEVALUE(ЗведенняЩомісячнихВитрат[[#Headers],[Березень]]&_xlfn.SINGLE(_РІК)),Інше[Дата ініціювання запиту на платіж],\"<=\"&F$4)","v":{"v":0,"d":"0.00₴"}},{"$f":"SUMIFS(ВитратиЗаСтаттями[Сума чека],ВитратиЗаСтаттями[Код головної книги],ЗведенняЩомісячнихВитрат[[#This Row],[Код головної книги]],ВитратиЗаСтаттями[Дата виставлення рахунка-фактури],\">=\"&G$3,ВитратиЗаСтаттями[Дата виставлення рахунка-фактури],\"<=\"&G$4)+SUMIFS(Інше[Сума чека],Інше[Код головної книги],ЗведенняЩомісячнихВитрат[[#This Row],[Код головної книги]],Інше[Дата ініціювання запиту на платіж],\">=\"\" 1, \"&DATEVALUE(ЗведенняЩомісячнихВитрат[[#Headers],[Квітень]]&_xlfn.SINGLE(_РІК)),Інше[Дата ініціювання запиту на платіж],\"<=\"&G$4)","v":{"v":0,"d":"0.00₴"}},{"$f":"SUMIFS(ВитратиЗаСтаттями[Сума чека],ВитратиЗаСтаттями[Код головної книги],ЗведенняЩомісячнихВитрат[[#This Row],[Код головної книги]],ВитратиЗаСтаттями[Дата виставлення рахунка-фактури],\">=\"&H$3,ВитратиЗаСтаттями[Дата виставлення рахунка-фактури],\"<=\"&H$4)+SUMIFS(Інше[Сума чека],Інше[Код головної книги],ЗведенняЩомісячнихВитрат[[#This Row],[Код головної книги]],Інше[Дата ініціювання запиту на платіж],\">=\"\" 1, \"&DATEVALUE(ЗведенняЩомісячнихВитрат[[#Headers],[Травень]]&_xlfn.SINGLE(_РІК)),Інше[Дата ініціювання запиту на платіж],\"<=\"&H$4)","v":{"v":0,"d":"0.00₴"}},{"$f":"SUMIFS(ВитратиЗаСтаттями[Сума чека],ВитратиЗаСтаттями[Код головної книги],ЗведенняЩомісячнихВитрат[[#This Row],[Код головної книги]],ВитратиЗаСтаттями[Дата виставлення рахунка-фактури],\">=\"&I$3,ВитратиЗаСтаттями[Дата виставлення рахунка-фактури],\"<=\"&I$4)+SUMIFS(Інше[Сума чека],Інше[Код головної книги],ЗведенняЩомісячнихВитрат[[#This Row],[Код головної книги]],Інше[Дата ініціювання запиту на платіж],\">=\"\" 1, \"&DATEVALUE(ЗведенняЩомісячнихВитрат[[#Headers],[Червень]]&_xlfn.SINGLE(_РІК)),Інше[Дата ініціювання запиту на платіж],\"<=\"&I$4)","v":{"v":0,"d":"0.00₴"}},{"$f":"SUMIFS(ВитратиЗаСтаттями[Сума чека],ВитратиЗаСтаттями[Код головної книги],ЗведенняЩомісячнихВитрат[[#This Row],[Код головної книги]],ВитратиЗаСтаттями[Дата виставлення рахунка-фактури],\">=\"&J$3,ВитратиЗаСтаттями[Дата виставлення рахунка-фактури],\"<=\"&J$4)+SUMIFS(Інше[Сума чека],Інше[Код головної книги],ЗведенняЩомісячнихВитрат[[#This Row],[Код головної книги]],Інше[Дата ініціювання запиту на платіж],\">=\"\" 1, \"&DATEVALUE(ЗведенняЩомісячнихВитрат[[#Headers],[Липень]]&_xlfn.SINGLE(_РІК)),Інше[Дата ініціювання запиту на платіж],\"<=\"&J$4)","v":{"v":0,"d":"0.00₴"}},{"$f":"SUMIFS(ВитратиЗаСтаттями[Сума чека],ВитратиЗаСтаттями[Код головної книги],ЗведенняЩомісячнихВитрат[[#This Row],[Код головної книги]],ВитратиЗаСтаттями[Дата виставлення рахунка-фактури],\">=\"&K$3,ВитратиЗаСтаттями[Дата виставлення рахунка-фактури],\"<=\"&K$4)+SUMIFS(Інше[Сума чека],Інше[Код головної книги],ЗведенняЩомісячнихВитрат[[#This Row],[Код головної книги]],Інше[Дата ініціювання запиту на платіж],\">=\"\" 1, \"&DATEVALUE(ЗведенняЩомісячнихВитрат[[#Headers],[Серпень]]&_xlfn.SINGLE(_РІК)),Інше[Дата ініціювання запиту на платіж],\"<=\"&K$4)","v":{"v":0,"d":"0.00₴"}},{"$f":"SUMIFS(ВитратиЗаСтаттями[Сума чека],ВитратиЗаСтаттями[Код головної книги],ЗведенняЩомісячнихВитрат[[#This Row],[Код головної книги]],ВитратиЗаСтаттями[Дата виставлення рахунка-фактури],\">=\"&L$3,ВитратиЗаСтаттями[Дата виставлення рахунка-фактури],\"<=\"&L$4)+SUMIFS(Інше[Сума чека],Інше[Код головної книги],ЗведенняЩомісячнихВитрат[[#This Row],[Код головної книги]],Інше[Дата ініціювання запиту на платіж],\">=\"\" 1, \"&DATEVALUE(ЗведенняЩомісячнихВитрат[[#Headers],[Вересень]]&_xlfn.SINGLE(_РІК)),Інше[Дата ініціювання запиту на платіж],\"<=\"&L$4)","v":{"v":0,"d":"0.00₴"}},{"$f":"SUMIFS(ВитратиЗаСтаттями[Сума чека],ВитратиЗаСтаттями[Код головної книги],ЗведенняЩомісячнихВитрат[[#This Row],[Код головної книги]],ВитратиЗаСтаттями[Дата виставлення рахунка-фактури],\">=\"&M$3,ВитратиЗаСтаттями[Дата виставлення рахунка-фактури],\"<=\"&M$4)+SUMIFS(Інше[Сума чека],Інше[Код головної книги],ЗведенняЩомісячнихВитрат[[#This Row],[Код головної книги]],Інше[Дата ініціювання запиту на платіж],\">=\"\" 1, \"&DATEVALUE(ЗведенняЩомісячнихВитрат[[#Headers],[Жовтень]]&_xlfn.SINGLE(_РІК)),Інше[Дата ініціювання запиту на платіж],\"<=\"&M$4)","v":{"v":0,"d":"0.00₴"}},{"$f":"SUMIFS(ВитратиЗаСтаттями[Сума чека],ВитратиЗаСтаттями[Код головної книги],ЗведенняЩомісячнихВитрат[[#This Row],[Код головної книги]],ВитратиЗаСтаттями[Дата виставлення рахунка-фактури],\">=\"&N$3,ВитратиЗаСтаттями[Дата виставлення рахунка-фактури],\"<=\"&N$4)+SUMIFS(Інше[Сума чека],Інше[Код головної книги],ЗведенняЩомісячнихВитрат[[#This Row],[Код головної книги]],Інше[Дата ініціювання запиту на платіж],\">=\"\" 1, \"&DATEVALUE(ЗведенняЩомісячнихВитрат[[#Headers],[Листопад]]&_xlfn.SINGLE(_РІК)),Інше[Дата ініціювання запиту на платіж],\"<=\"&N$4)","v":{"v":0,"d":"0.00₴"}},{"$f":"SUMIFS(ВитратиЗаСтаттями[Сума чека],ВитратиЗаСтаттями[Код головної книги],ЗведенняЩомісячнихВитрат[[#This Row],[Код головної книги]],ВитратиЗаСтаттями[Дата виставлення рахунка-фактури],\">=\"&O$3,ВитратиЗаСтаттями[Дата виставлення рахунка-фактури],\"<=\"&O$4)+SUMIFS(Інше[Сума чека],Інше[Код головної книги],ЗведенняЩомісячнихВитрат[[#This Row],[Код головної книги]],Інше[Дата ініціювання запиту на платіж],\">=\"\" 1, \"&DATEVALUE(ЗведенняЩомісячнихВитрат[[#Headers],[Грудень]]&_xlfn.SINGLE(_РІК)),Інше[Дата ініціювання запиту на платіж],\"<=\"&O$4)","v":{"v":0,"d":"0.00₴"}},{"$f":"SUM(ЗведенняЩомісячнихВитрат[[#This Row],[Січень]:[Грудень]])","v":{"v":0,"d":"0.00₴"}}]
[null,7000,"Комп’ютери",{"$f":"SUMIFS(ВитратиЗаСтаттями[Сума чека],ВитратиЗаСтаттями[Код головної книги],ЗведенняЩомісячнихВитрат[[#This Row],[Код головної книги]],ВитратиЗаСтаттями[Дата виставлення рахунка-фактури],\">=\"&D$3,ВитратиЗаСтаттями[Дата виставлення рахунка-фактури],\"<=\"&D$4)+SUMIFS(Інше[Сума чека],Інше[Код головної книги],ЗведенняЩомісячнихВитрат[[#This Row],[Код головної книги]],Інше[Дата ініціювання запиту на платіж],\">=\"\" 1, \"&DATEVALUE(ЗведенняЩомісячнихВитрат[[#Headers],[Січень]]&_xlfn.SINGLE(_РІК)),Інше[Дата ініціювання запиту на платіж],\"<=\"&D$4)","v":{"v":0,"d":"0.00₴"}},{"$f":"SUMIFS(ВитратиЗаСтаттями[Сума чека],ВитратиЗаСтаттями[Код головної книги],ЗведенняЩомісячнихВитрат[[#This Row],[Код головної книги]],ВитратиЗаСтаттями[Дата виставлення рахунка-фактури],\">=\"&E$3,ВитратиЗаСтаттями[Дата виставлення рахунка-фактури],\"<=\"&E$4)+SUMIFS(Інше[Сума чека],Інше[Код головної книги],ЗведенняЩомісячнихВитрат[[#This Row],[Код головної книги]],Інше[Дата ініціювання запиту на платіж],\">=\"\" 1, \"&DATEVALUE(ЗведенняЩомісячнихВитрат[[#Headers],[Лютий]]&_xlfn.SINGLE(_РІК)),Інше[Дата ініціювання запиту на платіж],\"<=\"&E$4)","v":{"v":0,"d":"0.00₴"}},{"$f":"SUMIFS(ВитратиЗаСтаттями[Сума чека],ВитратиЗаСтаттями[Код головної книги],ЗведенняЩомісячнихВитрат[[#This Row],[Код головної книги]],ВитратиЗаСтаттями[Дата виставлення рахунка-фактури],\">=\"&F$3,ВитратиЗаСтаттями[Дата виставлення рахунка-фактури],\"<=\"&F$4)+SUMIFS(Інше[Сума чека],Інше[Код головної книги],ЗведенняЩомісячнихВитрат[[#This Row],[Код головної книги]],Інше[Дата ініціювання запиту на платіж],\">=\"\" 1, \"&DATEVALUE(ЗведенняЩомісячнихВитрат[[#Headers],[Березень]]&_xlfn.SINGLE(_РІК)),Інше[Дата ініціювання запиту на платіж],\"<=\"&F$4)","v":{"v":0,"d":"0.00₴"}},{"$f":"SUMIFS(ВитратиЗаСтаттями[Сума чека],ВитратиЗаСтаттями[Код головної книги],ЗведенняЩомісячнихВитрат[[#This Row],[Код головної книги]],ВитратиЗаСтаттями[Дата виставлення рахунка-фактури],\">=\"&G$3,ВитратиЗаСтаттями[Дата виставлення рахунка-фактури],\"<=\"&G$4)+SUMIFS(Інше[Сума чека],Інше[Код головної книги],ЗведенняЩомісячнихВитрат[[#This Row],[Код головної книги]],Інше[Дата ініціювання запиту на платіж],\">=\"\" 1, \"&DATEVALUE(ЗведенняЩомісячнихВитрат[[#Headers],[Квітень]]&_xlfn.SINGLE(_РІК)),Інше[Дата ініціювання запиту на платіж],\"<=\"&G$4)","v":{"v":0,"d":"0.00₴"}},{"$f":"SUMIFS(ВитратиЗаСтаттями[Сума чека],ВитратиЗаСтаттями[Код головної книги],ЗведенняЩомісячнихВитрат[[#This Row],[Код головної книги]],ВитратиЗаСтаттями[Дата виставлення рахунка-фактури],\">=\"&H$3,ВитратиЗаСтаттями[Дата виставлення рахунка-фактури],\"<=\"&H$4)+SUMIFS(Інше[Сума чека],Інше[Код головної книги],ЗведенняЩомісячнихВитрат[[#This Row],[Код головної книги]],Інше[Дата ініціювання запиту на платіж],\">=\"\" 1, \"&DATEVALUE(ЗведенняЩомісячнихВитрат[[#Headers],[Травень]]&_xlfn.SINGLE(_РІК)),Інше[Дата ініціювання запиту на платіж],\"<=\"&H$4)","v":{"v":0,"d":"0.00₴"}},{"$f":"SUMIFS(ВитратиЗаСтаттями[Сума чека],ВитратиЗаСтаттями[Код головної книги],ЗведенняЩомісячнихВитрат[[#This Row],[Код головної книги]],ВитратиЗаСтаттями[Дата виставлення рахунка-фактури],\">=\"&I$3,ВитратиЗаСтаттями[Дата виставлення рахунка-фактури],\"<=\"&I$4)+SUMIFS(Інше[Сума чека],Інше[Код головної книги],ЗведенняЩомісячнихВитрат[[#This Row],[Код головної книги]],Інше[Дата ініціювання запиту на платіж],\">=\"\" 1, \"&DATEVALUE(ЗведенняЩомісячнихВитрат[[#Headers],[Червень]]&_xlfn.SINGLE(_РІК)),Інше[Дата ініціювання запиту на платіж],\"<=\"&I$4)","v":{"v":0,"d":"0.00₴"}},{"$f":"SUMIFS(ВитратиЗаСтаттями[Сума чека],ВитратиЗаСтаттями[Код головної книги],ЗведенняЩомісячнихВитрат[[#This Row],[Код головної книги]],ВитратиЗаСтаттями[Дата виставлення рахунка-фактури],\">=\"&J$3,ВитратиЗаСтаттями[Дата виставлення рахунка-фактури],\"<=\"&J$4)+SUMIFS(Інше[Сума чека],Інше[Код головної книги],ЗведенняЩомісячнихВитрат[[#This Row],[Код головної книги]],Інше[Дата ініціювання запиту на платіж],\">=\"\" 1, \"&DATEVALUE(ЗведенняЩомісячнихВитрат[[#Headers],[Липень]]&_xlfn.SINGLE(_РІК)),Інше[Дата ініціювання запиту на платіж],\"<=\"&J$4)","v":{"v":0,"d":"0.00₴"}},{"$f":"SUMIFS(ВитратиЗаСтаттями[Сума чека],ВитратиЗаСтаттями[Код головної книги],ЗведенняЩомісячнихВитрат[[#This Row],[Код головної книги]],ВитратиЗаСтаттями[Дата виставлення рахунка-фактури],\">=\"&K$3,ВитратиЗаСтаттями[Дата виставлення рахунка-фактури],\"<=\"&K$4)+SUMIFS(Інше[Сума чека],Інше[Код головної книги],ЗведенняЩомісячнихВитрат[[#This Row],[Код головної книги]],Інше[Дата ініціювання запиту на платіж],\">=\"\" 1, \"&DATEVALUE(ЗведенняЩомісячнихВитрат[[#Headers],[Серпень]]&_xlfn.SINGLE(_РІК)),Інше[Дата ініціювання запиту на платіж],\"<=\"&K$4)","v":{"v":0,"d":"0.00₴"}},{"$f":"SUMIFS(ВитратиЗаСтаттями[Сума чека],ВитратиЗаСтаттями[Код головної книги],ЗведенняЩомісячнихВитрат[[#This Row],[Код головної книги]],ВитратиЗаСтаттями[Дата виставлення рахунка-фактури],\">=\"&L$3,ВитратиЗаСтаттями[Дата виставлення рахунка-фактури],\"<=\"&L$4)+SUMIFS(Інше[Сума чека],Інше[Код головної книги],ЗведенняЩомісячнихВитрат[[#This Row],[Код головної книги]],Інше[Дата ініціювання запиту на платіж],\">=\"\" 1, \"&DATEVALUE(ЗведенняЩомісячнихВитрат[[#Headers],[Вересень]]&_xlfn.SINGLE(_РІК)),Інше[Дата ініціювання запиту на платіж],\"<=\"&L$4)","v":{"v":0,"d":"0.00₴"}},{"$f":"SUMIFS(ВитратиЗаСтаттями[Сума чека],ВитратиЗаСтаттями[Код головної книги],ЗведенняЩомісячнихВитрат[[#This Row],[Код головної книги]],ВитратиЗаСтаттями[Дата виставлення рахунка-фактури],\">=\"&M$3,ВитратиЗаСтаттями[Дата виставлення рахунка-фактури],\"<=\"&M$4)+SUMIFS(Інше[Сума чека],Інше[Код головної книги],ЗведенняЩомісячнихВитрат[[#This Row],[Код головної книги]],Інше[Дата ініціювання запиту на платіж],\">=\"\" 1, \"&DATEVALUE(ЗведенняЩомісячнихВитрат[[#Headers],[Жовтень]]&_xlfn.SINGLE(_РІК)),Інше[Дата ініціювання запиту на платіж],\"<=\"&M$4)","v":{"v":0,"d":"0.00₴"}},{"$f":"SUMIFS(ВитратиЗаСтаттями[Сума чека],ВитратиЗаСтаттями[Код головної книги],ЗведенняЩомісячнихВитрат[[#This Row],[Код головної книги]],ВитратиЗаСтаттями[Дата виставлення рахунка-фактури],\">=\"&N$3,ВитратиЗаСтаттями[Дата виставлення рахунка-фактури],\"<=\"&N$4)+SUMIFS(Інше[Сума чека],Інше[Код головної книги],ЗведенняЩомісячнихВитрат[[#This Row],[Код головної книги]],Інше[Дата ініціювання запиту на платіж],\">=\"\" 1, \"&DATEVALUE(ЗведенняЩомісячнихВитрат[[#Headers],[Листопад]]&_xlfn.SINGLE(_РІК)),Інше[Дата ініціювання запиту на платіж],\"<=\"&N$4)","v":{"v":0,"d":"0.00₴"}},{"$f":"SUMIFS(ВитратиЗаСтаттями[Сума чека],ВитратиЗаСтаттями[Код головної книги],ЗведенняЩомісячнихВитрат[[#This Row],[Код головної книги]],ВитратиЗаСтаттями[Дата виставлення рахунка-фактури],\">=\"&O$3,ВитратиЗаСтаттями[Дата виставлення рахунка-фактури],\"<=\"&O$4)+SUMIFS(Інше[Сума чека],Інше[Код головної книги],ЗведенняЩомісячнихВитрат[[#This Row],[Код головної книги]],Інше[Дата ініціювання запиту на платіж],\">=\"\" 1, \"&DATEVALUE(ЗведенняЩомісячнихВитрат[[#Headers],[Грудень]]&_xlfn.SINGLE(_РІК)),Інше[Дата ініціювання запиту на платіж],\"<=\"&O$4)","v":{"v":0,"d":"0.00₴"}},{"$f":"SUM(ЗведенняЩомісячнихВитрат[[#This Row],[Січень]:[Грудень]])","v":{"v":0,"d":"0.00₴"}}]
[null,8000,"План медичного обслуговування",{"$f":"SUMIFS(ВитратиЗаСтаттями[Сума чека],ВитратиЗаСтаттями[Код головної книги],ЗведенняЩомісячнихВитрат[[#This Row],[Код головної книги]],ВитратиЗаСтаттями[Дата виставлення рахунка-фактури],\">=\"&D$3,ВитратиЗаСтаттями[Дата виставлення рахунка-фактури],\"<=\"&D$4)+SUMIFS(Інше[Сума чека],Інше[Код головної книги],ЗведенняЩомісячнихВитрат[[#This Row],[Код головної книги]],Інше[Дата ініціювання запиту на платіж],\">=\"\" 1, \"&DATEVALUE(ЗведенняЩомісячнихВитрат[[#Headers],[Січень]]&_xlfn.SINGLE(_РІК)),Інше[Дата ініціювання запиту на платіж],\"<=\"&D$4)","v":{"v":0,"d":"0.00₴"}},{"$f":"SUMIFS(ВитратиЗаСтаттями[Сума чека],ВитратиЗаСтаттями[Код головної книги],ЗведенняЩомісячнихВитрат[[#This Row],[Код головної книги]],ВитратиЗаСтаттями[Дата виставлення рахунка-фактури],\">=\"&E$3,ВитратиЗаСтаттями[Дата виставлення рахунка-фактури],\"<=\"&E$4)+SUMIFS(Інше[Сума чека],Інше[Код головної книги],ЗведенняЩомісячнихВитрат[[#This Row],[Код головної книги]],Інше[Дата ініціювання запиту на платіж],\">=\"\" 1, \"&DATEVALUE(ЗведенняЩомісячнихВитрат[[#Headers],[Лютий]]&_xlfn.SINGLE(_РІК)),Інше[Дата ініціювання запиту на платіж],\"<=\"&E$4)","v":{"v":0,"d":"0.00₴"}},{"$f":"SUMIFS(ВитратиЗаСтаттями[Сума чека],ВитратиЗаСтаттями[Код головної книги],ЗведенняЩомісячнихВитрат[[#This Row],[Код головної книги]],ВитратиЗаСтаттями[Дата виставлення рахунка-фактури],\">=\"&F$3,ВитратиЗаСтаттями[Дата виставлення рахунка-фактури],\"<=\"&F$4)+SUMIFS(Інше[Сума чека],Інше[Код головної книги],ЗведенняЩомісячнихВитрат[[#This Row],[Код головної книги]],Інше[Дата ініціювання запиту на платіж],\">=\"\" 1, \"&DATEVALUE(ЗведенняЩомісячнихВитрат[[#Headers],[Березень]]&_xlfn.SINGLE(_РІК)),Інше[Дата ініціювання запиту на платіж],\"<=\"&F$4)","v":{"v":0,"d":"0.00₴"}},{"$f":"SUMIFS(ВитратиЗаСтаттями[Сума чека],ВитратиЗаСтаттями[Код головної книги],ЗведенняЩомісячнихВитрат[[#This Row],[Код головної книги]],ВитратиЗаСтаттями[Дата виставлення рахунка-фактури],\">=\"&G$3,ВитратиЗаСтаттями[Дата виставлення рахунка-фактури],\"<=\"&G$4)+SUMIFS(Інше[Сума чека],Інше[Код головної книги],ЗведенняЩомісячнихВитрат[[#This Row],[Код головної книги]],Інше[Дата ініціювання запиту на платіж],\">=\"\" 1, \"&DATEVALUE(ЗведенняЩомісячнихВитрат[[#Headers],[Квітень]]&_xlfn.SINGLE(_РІК)),Інше[Дата ініціювання запиту на платіж],\"<=\"&G$4)","v":{"v":0,"d":"0.00₴"}},{"$f":"SUMIFS(ВитратиЗаСтаттями[Сума чека],ВитратиЗаСтаттями[Код головної книги],ЗведенняЩомісячнихВитрат[[#This Row],[Код головної книги]],ВитратиЗаСтаттями[Дата виставлення рахунка-фактури],\">=\"&H$3,ВитратиЗаСтаттями[Дата виставлення рахунка-фактури],\"<=\"&H$4)+SUMIFS(Інше[Сума чека],Інше[Код головної книги],ЗведенняЩомісячнихВитрат[[#This Row],[Код головної книги]],Інше[Дата ініціювання запиту на платіж],\">=\"\" 1, \"&DATEVALUE(ЗведенняЩомісячнихВитрат[[#Headers],[Травень]]&_xlfn.SINGLE(_РІК)),Інше[Дата ініціювання запиту на платіж],\"<=\"&H$4)","v":{"v":0,"d":"0.00₴"}},{"$f":"SUMIFS(ВитратиЗаСтаттями[Сума чека],ВитратиЗаСтаттями[Код головної книги],ЗведенняЩомісячнихВитрат[[#This Row],[Код головної книги]],ВитратиЗаСтаттями[Дата виставлення рахунка-фактури],\">=\"&I$3,ВитратиЗаСтаттями[Дата виставлення рахунка-фактури],\"<=\"&I$4)+SUMIFS(Інше[Сума чека],Інше[Код головної книги],ЗведенняЩомісячнихВитрат[[#This Row],[Код головної книги]],Інше[Дата ініціювання запиту на платіж],\">=\"\" 1, \"&DATEVALUE(ЗведенняЩомісячнихВитрат[[#Headers],[Червень]]&_xlfn.SINGLE(_РІК)),Інше[Дата ініціювання запиту на платіж],\"<=\"&I$4)","v":{"v":0,"d":"0.00₴"}},{"$f":"SUMIFS(ВитратиЗаСтаттями[Сума чека],ВитратиЗаСтаттями[Код головної книги],ЗведенняЩомісячнихВитрат[[#This Row],[Код головної книги]],ВитратиЗаСтаттями[Дата виставлення рахунка-фактури],\">=\"&J$3,ВитратиЗаСтаттями[Дата виставлення рахунка-фактури],\"<=\"&J$4)+SUMIFS(Інше[Сума чека],Інше[Код головної книги],ЗведенняЩомісячнихВитрат[[#This Row],[Код головної книги]],Інше[Дата ініціювання запиту на платіж],\">=\"\" 1, \"&DATEVALUE(ЗведенняЩомісячнихВитрат[[#Headers],[Липень]]&_xlfn.SINGLE(_РІК)),Інше[Дата ініціювання запиту на платіж],\"<=\"&J$4)","v":{"v":0,"d":"0.00₴"}},{"$f":"SUMIFS(ВитратиЗаСтаттями[Сума чека],ВитратиЗаСтаттями[Код головної книги],ЗведенняЩомісячнихВитрат[[#This Row],[Код головної книги]],ВитратиЗаСтаттями[Дата виставлення рахунка-фактури],\">=\"&K$3,ВитратиЗаСтаттями[Дата виставлення рахунка-фактури],\"<=\"&K$4)+SUMIFS(Інше[Сума чека],Інше[Код головної книги],ЗведенняЩомісячнихВитрат[[#This Row],[Код головної книги]],Інше[Дата ініціювання запиту на платіж],\">=\"\" 1, \"&DATEVALUE(ЗведенняЩомісячнихВитрат[[#Headers],[Серпень]]&_xlfn.SINGLE(_РІК)),Інше[Дата ініціювання запиту на платіж],\"<=\"&K$4)","v":{"v":0,"d":"0.00₴"}},{"$f":"SUMIFS(ВитратиЗаСтаттями[Сума чека],ВитратиЗаСтаттями[Код головної книги],ЗведенняЩомісячнихВитрат[[#This Row],[Код головної книги]],ВитратиЗаСтаттями[Дата виставлення рахунка-фактури],\">=\"&L$3,ВитратиЗаСтаттями[Дата виставлення рахунка-фактури],\"<=\"&L$4)+SUMIFS(Інше[Сума чека],Інше[Код головної книги],ЗведенняЩомісячнихВитрат[[#This Row],[Код головної книги]],Інше[Дата ініціювання запиту на платіж],\">=\"\" 1, \"&DATEVALUE(ЗведенняЩомісячнихВитрат[[#Headers],[Вересень]]&_xlfn.SINGLE(_РІК)),Інше[Дата ініціювання запиту на платіж],\"<=\"&L$4)","v":{"v":0,"d":"0.00₴"}},{"$f":"SUMIFS(ВитратиЗаСтаттями[Сума чека],ВитратиЗаСтаттями[Код головної книги],ЗведенняЩомісячнихВитрат[[#This Row],[Код головної книги]],ВитратиЗаСтаттями[Дата виставлення рахунка-фактури],\">=\"&M$3,ВитратиЗаСтаттями[Дата виставлення рахунка-фактури],\"<=\"&M$4)+SUMIFS(Інше[Сума чека],Інше[Код головної книги],ЗведенняЩомісячнихВитрат[[#This Row],[Код головної книги]],Інше[Дата ініціювання запиту на платіж],\">=\"\" 1, \"&DATEVALUE(ЗведенняЩомісячнихВитрат[[#Headers],[Жовтень]]&_xlfn.SINGLE(_РІК)),Інше[Дата ініціювання запиту на платіж],\"<=\"&M$4)","v":{"v":0,"d":"0.00₴"}},{"$f":"SUMIFS(ВитратиЗаСтаттями[Сума чека],ВитратиЗаСтаттями[Код головної книги],ЗведенняЩомісячнихВитрат[[#This Row],[Код головної книги]],ВитратиЗаСтаттями[Дата виставлення рахунка-фактури],\">=\"&N$3,ВитратиЗаСтаттями[Дата виставлення рахунка-фактури],\"<=\"&N$4)+SUMIFS(Інше[Сума чека],Інше[Код головної книги],ЗведенняЩомісячнихВитрат[[#This Row],[Код головної книги]],Інше[Дата ініціювання запиту на платіж],\">=\"\" 1, \"&DATEVALUE(ЗведенняЩомісячнихВитрат[[#Headers],[Листопад]]&_xlfn.SINGLE(_РІК)),Інше[Дата ініціювання запиту на платіж],\"<=\"&N$4)","v":{"v":0,"d":"0.00₴"}},{"$f":"SUMIFS(ВитратиЗаСтаттями[Сума чека],ВитратиЗаСтаттями[Код головної книги],ЗведенняЩомісячнихВитрат[[#This Row],[Код головної книги]],ВитратиЗаСтаттями[Дата виставлення рахунка-фактури],\">=\"&O$3,ВитратиЗаСтаттями[Дата виставлення рахунка-фактури],\"<=\"&O$4)+SUMIFS(Інше[Сума чека],Інше[Код головної книги],ЗведенняЩомісячнихВитрат[[#This Row],[Код головної книги]],Інше[Дата ініціювання запиту на платіж],\">=\"\" 1, \"&DATEVALUE(ЗведенняЩомісячнихВитрат[[#Headers],[Грудень]]&_xlfn.SINGLE(_РІК)),Інше[Дата ініціювання запиту на платіж],\"<=\"&O$4)","v":{"v":0,"d":"0.00₴"}},{"$f":"SUM(ЗведенняЩомісячнихВитрат[[#This Row],[Січень]:[Грудень]])","v":{"v":0,"d":"0.00₴"}}]
[null,9000,"Витрати на будівництво",{"$f":"SUMIFS(ВитратиЗаСтаттями[Сума чека],ВитратиЗаСтаттями[Код головної книги],ЗведенняЩомісячнихВитрат[[#This Row],[Код головної книги]],ВитратиЗаСтаттями[Дата виставлення рахунка-фактури],\">=\"&D$3,ВитратиЗаСтаттями[Дата виставлення рахунка-фактури],\"<=\"&D$4)+SUMIFS(Інше[Сума чека],Інше[Код головної книги],ЗведенняЩомісячнихВитрат[[#This Row],[Код головної книги]],Інше[Дата ініціювання запиту на платіж],\">=\"\" 1, \"&DATEVALUE(ЗведенняЩомісячнихВитрат[[#Headers],[Січень]]&_xlfn.SINGLE(_РІК)),Інше[Дата ініціювання запиту на платіж],\"<=\"&D$4)","v":{"v":0,"d":"0.00₴"}},{"$f":"SUMIFS(ВитратиЗаСтаттями[Сума чека],ВитратиЗаСтаттями[Код головної книги],ЗведенняЩомісячнихВитрат[[#This Row],[Код головної книги]],ВитратиЗаСтаттями[Дата виставлення рахунка-фактури],\">=\"&E$3,ВитратиЗаСтаттями[Дата виставлення рахунка-фактури],\"<=\"&E$4)+SUMIFS(Інше[Сума чека],Інше[Код головної книги],ЗведенняЩомісячнихВитрат[[#This Row],[Код головної книги]],Інше[Дата ініціювання запиту на платіж],\">=\"\" 1, \"&DATEVALUE(ЗведенняЩомісячнихВитрат[[#Headers],[Лютий]]&_xlfn.SINGLE(_РІК)),Інше[Дата ініціювання запиту на платіж],\"<=\"&E$4)","v":{"v":0,"d":"0.00₴"}},{"$f":"SUMIFS(ВитратиЗаСтаттями[Сума чека],ВитратиЗаСтаттями[Код головної книги],ЗведенняЩомісячнихВитрат[[#This Row],[Код головної книги]],ВитратиЗаСтаттями[Дата виставлення рахунка-фактури],\">=\"&F$3,ВитратиЗаСтаттями[Дата виставлення рахунка-фактури],\"<=\"&F$4)+SUMIFS(Інше[Сума чека],Інше[Код головної книги],ЗведенняЩомісячнихВитрат[[#This Row],[Код головної книги]],Інше[Дата ініціювання запиту на платіж],\">=\"\" 1, \"&DATEVALUE(ЗведенняЩомісячнихВитрат[[#Headers],[Березень]]&_xlfn.SINGLE(_РІК)),Інше[Дата ініціювання запиту на платіж],\"<=\"&F$4)","v":{"v":0,"d":"0.00₴"}},{"$f":"SUMIFS(ВитратиЗаСтаттями[Сума чека],ВитратиЗаСтаттями[Код головної книги],ЗведенняЩомісячнихВитрат[[#This Row],[Код головної книги]],ВитратиЗаСтаттями[Дата виставлення рахунка-фактури],\">=\"&G$3,ВитратиЗаСтаттями[Дата виставлення рахунка-фактури],\"<=\"&G$4)+SUMIFS(Інше[Сума чека],Інше[Код головної книги],ЗведенняЩомісячнихВитрат[[#This Row],[Код головної книги]],Інше[Дата ініціювання запиту на платіж],\">=\"\" 1, \"&DATEVALUE(ЗведенняЩомісячнихВитрат[[#Headers],[Квітень]]&_xlfn.SINGLE(_РІК)),Інше[Дата ініціювання запиту на платіж],\"<=\"&G$4)","v":{"v":0,"d":"0.00₴"}},{"$f":"SUMIFS(ВитратиЗаСтаттями[Сума чека],ВитратиЗаСтаттями[Код головної книги],ЗведенняЩомісячнихВитрат[[#This Row],[Код головної книги]],ВитратиЗаСтаттями[Дата виставлення рахунка-фактури],\">=\"&H$3,ВитратиЗаСтаттями[Дата виставлення рахунка-фактури],\"<=\"&H$4)+SUMIFS(Інше[Сума чека],Інше[Код головної книги],ЗведенняЩомісячнихВитрат[[#This Row],[Код головної книги]],Інше[Дата ініціювання запиту на платіж],\">=\"\" 1, \"&DATEVALUE(ЗведенняЩомісячнихВитрат[[#Headers],[Травень]]&_xlfn.SINGLE(_РІК)),Інше[Дата ініціювання запиту на платіж],\"<=\"&H$4)","v":{"v":0,"d":"0.00₴"}},{"$f":"SUMIFS(ВитратиЗаСтаттями[Сума чека],ВитратиЗаСтаттями[Код головної книги],ЗведенняЩомісячнихВитрат[[#This Row],[Код головної книги]],ВитратиЗаСтаттями[Дата виставлення рахунка-фактури],\">=\"&I$3,ВитратиЗаСтаттями[Дата виставлення рахунка-фактури],\"<=\"&I$4)+SUMIFS(Інше[Сума чека],Інше[Код головної книги],ЗведенняЩомісячнихВитрат[[#This Row],[Код головної книги]],Інше[Дата ініціювання запиту на платіж],\">=\"\" 1, \"&DATEVALUE(ЗведенняЩомісячнихВитрат[[#Headers],[Червень]]&_xlfn.SINGLE(_РІК)),Інше[Дата ініціювання запиту на платіж],\"<=\"&I$4)","v":{"v":0,"d":"0.00₴"}},{"$f":"SUMIFS(ВитратиЗаСтаттями[Сума чека],ВитратиЗаСтаттями[Код головної книги],ЗведенняЩомісячнихВитрат[[#This Row],[Код головної книги]],ВитратиЗаСтаттями[Дата виставлення рахунка-фактури],\">=\"&J$3,ВитратиЗаСтаттями[Дата виставлення рахунка-фактури],\"<=\"&J$4)+SUMIFS(Інше[Сума чека],Інше[Код головної книги],ЗведенняЩомісячнихВитрат[[#This Row],[Код головної книги]],Інше[Дата ініціювання запиту на платіж],\">=\"\" 1, \"&DATEVALUE(ЗведенняЩомісячнихВитрат[[#Headers],[Липень]]&_xlfn.SINGLE(_РІК)),Інше[Дата ініціювання запиту на платіж],\"<=\"&J$4)","v":{"v":0,"d":"0.00₴"}},{"$f":"SUMIFS(ВитратиЗаСтаттями[Сума чека],ВитратиЗаСтаттями[Код головної книги],ЗведенняЩомісячнихВитрат[[#This Row],[Код головної книги]],ВитратиЗаСтаттями[Дата виставлення рахунка-фактури],\">=\"&K$3,ВитратиЗаСтаттями[Дата виставлення рахунка-фактури],\"<=\"&K$4)+SUMIFS(Інше[Сума чека],Інше[Код головної книги],ЗведенняЩомісячнихВитрат[[#This Row],[Код головної книги]],Інше[Дата ініціювання запиту на платіж],\">=\"\" 1, \"&DATEVALUE(ЗведенняЩомісячнихВитрат[[#Headers],[Серпень]]&_xlfn.SINGLE(_РІК)),Інше[Дата ініціювання запиту на платіж],\"<=\"&K$4)","v":{"v":0,"d":"0.00₴"}},{"$f":"SUMIFS(ВитратиЗаСтаттями[Сума чека],ВитратиЗаСтаттями[Код головної книги],ЗведенняЩомісячнихВитрат[[#This Row],[Код головної книги]],ВитратиЗаСтаттями[Дата виставлення рахунка-фактури],\">=\"&L$3,ВитратиЗаСтаттями[Дата виставлення рахунка-фактури],\"<=\"&L$4)+SUMIFS(Інше[Сума чека],Інше[Код головної книги],ЗведенняЩомісячнихВитрат[[#This Row],[Код головної книги]],Інше[Дата ініціювання запиту на платіж],\">=\"\" 1, \"&DATEVALUE(ЗведенняЩомісячнихВитрат[[#Headers],[Вересень]]&_xlfn.SINGLE(_РІК)),Інше[Дата ініціювання запиту на платіж],\"<=\"&L$4)","v":{"v":0,"d":"0.00₴"}},{"$f":"SUMIFS(ВитратиЗаСтаттями[Сума чека],ВитратиЗаСтаттями[Код головної книги],ЗведенняЩомісячнихВитрат[[#This Row],[Код головної книги]],ВитратиЗаСтаттями[Дата виставлення рахунка-фактури],\">=\"&M$3,ВитратиЗаСтаттями[Дата виставлення рахунка-фактури],\"<=\"&M$4)+SUMIFS(Інше[Сума чека],Інше[Код головної книги],ЗведенняЩомісячнихВитрат[[#This Row],[Код головної книги]],Інше[Дата ініціювання запиту на платіж],\">=\"\" 1, \"&DATEVALUE(ЗведенняЩомісячнихВитрат[[#Headers],[Жовтень]]&_xlfn.SINGLE(_РІК)),Інше[Дата ініціювання запиту на платіж],\"<=\"&M$4)","v":{"v":0,"d":"0.00₴"}},{"$f":"SUMIFS(ВитратиЗаСтаттями[Сума чека],ВитратиЗаСтаттями[Код головної книги],ЗведенняЩомісячнихВитрат[[#This Row],[Код головної книги]],ВитратиЗаСтаттями[Дата виставлення рахунка-фактури],\">=\"&N$3,ВитратиЗаСтаттями[Дата виставлення рахунка-фактури],\"<=\"&N$4)+SUMIFS(Інше[Сума чека],Інше[Код головної книги],ЗведенняЩомісячнихВитрат[[#This Row],[Код головної книги]],Інше[Дата ініціювання запиту на платіж],\">=\"\" 1, \"&DATEVALUE(ЗведенняЩомісячнихВитрат[[#Headers],[Листопад]]&_xlfn.SINGLE(_РІК)),Інше[Дата ініціювання запиту на платіж],\"<=\"&N$4)","v":{"v":0,"d":"0.00₴"}},{"$f":"SUMIFS(ВитратиЗаСтаттями[Сума чека],ВитратиЗаСтаттями[Код головної книги],ЗведенняЩомісячнихВитрат[[#This Row],[Код головної книги]],ВитратиЗаСтаттями[Дата виставлення рахунка-фактури],\">=\"&O$3,ВитратиЗаСтаттями[Дата виставлення рахунка-фактури],\"<=\"&O$4)+SUMIFS(Інше[Сума чека],Інше[Код головної книги],ЗведенняЩомісячнихВитрат[[#This Row],[Код головної книги]],Інше[Дата ініціювання запиту на платіж],\">=\"\" 1, \"&DATEVALUE(ЗведенняЩомісячнихВитрат[[#Headers],[Грудень]]&_xlfn.SINGLE(_РІК)),Інше[Дата ініціювання запиту на платіж],\"<=\"&O$4)","v":{"v":0,"d":"0.00₴"}},{"$f":"SUM(ЗведенняЩомісячнихВитрат[[#This Row],[Січень]:[Грудень]])","v":{"v":0,"d":"0.00₴"}}]
[null,10000,"Маркетинг",{"$f":"SUMIFS(ВитратиЗаСтаттями[Сума чека],ВитратиЗаСтаттями[Код головної книги],ЗведенняЩомісячнихВитрат[[#This Row],[Код головної книги]],ВитратиЗаСтаттями[Дата виставлення рахунка-фактури],\">=\"&D$3,ВитратиЗаСтаттями[Дата виставлення рахунка-фактури],\"<=\"&D$4)+SUMIFS(Інше[Сума чека],Інше[Код головної книги],ЗведенняЩомісячнихВитрат[[#This Row],[Код головної книги]],Інше[Дата ініціювання запиту на платіж],\">=\"\" 1, \"&DATEVALUE(ЗведенняЩомісячнихВитрат[[#Headers],[Січень]]&_xlfn.SINGLE(_РІК)),Інше[Дата ініціювання запиту на платіж],\"<=\"&D$4)","v":{"v":0,"d":"0.00₴"}},{"$f":"SUMIFS(ВитратиЗаСтаттями[Сума чека],ВитратиЗаСтаттями[Код головної книги],ЗведенняЩомісячнихВитрат[[#This Row],[Код головної книги]],ВитратиЗаСтаттями[Дата виставлення рахунка-фактури],\">=\"&E$3,ВитратиЗаСтаттями[Дата виставлення рахунка-фактури],\"<=\"&E$4)+SUMIFS(Інше[Сума чека],Інше[Код головної книги],ЗведенняЩомісячнихВитрат[[#This Row],[Код головної книги]],Інше[Дата ініціювання запиту на платіж],\">=\"\" 1, \"&DATEVALUE(ЗведенняЩомісячнихВитрат[[#Headers],[Лютий]]&_xlfn.SINGLE(_РІК)),Інше[Дата ініціювання запиту на платіж],\"<=\"&E$4)","v":{"v":0,"d":"0.00₴"}},{"$f":"SUMIFS(ВитратиЗаСтаттями[Сума чека],ВитратиЗаСтаттями[Код головної книги],ЗведенняЩомісячнихВитрат[[#This Row],[Код головної книги]],ВитратиЗаСтаттями[Дата виставлення рахунка-фактури],\">=\"&F$3,ВитратиЗаСтаттями[Дата виставлення рахунка-фактури],\"<=\"&F$4)+SUMIFS(Інше[Сума чека],Інше[Код головної книги],ЗведенняЩомісячнихВитрат[[#This Row],[Код головної книги]],Інше[Дата ініціювання запиту на платіж],\">=\"\" 1, \"&DATEVALUE(ЗведенняЩомісячнихВитрат[[#Headers],[Березень]]&_xlfn.SINGLE(_РІК)),Інше[Дата ініціювання запиту на платіж],\"<=\"&F$4)","v":{"v":0,"d":"0.00₴"}},{"$f":"SUMIFS(ВитратиЗаСтаттями[Сума чека],ВитратиЗаСтаттями[Код головної книги],ЗведенняЩомісячнихВитрат[[#This Row],[Код головної книги]],ВитратиЗаСтаттями[Дата виставлення рахунка-фактури],\">=\"&G$3,ВитратиЗаСтаттями[Дата виставлення рахунка-фактури],\"<=\"&G$4)+SUMIFS(Інше[Сума чека],Інше[Код головної книги],ЗведенняЩомісячнихВитрат[[#This Row],[Код головної книги]],Інше[Дата ініціювання запиту на платіж],\">=\"\" 1, \"&DATEVALUE(ЗведенняЩомісячнихВитрат[[#Headers],[Квітень]]&_xlfn.SINGLE(_РІК)),Інше[Дата ініціювання запиту на платіж],\"<=\"&G$4)","v":{"v":0,"d":"0.00₴"}},{"$f":"SUMIFS(ВитратиЗаСтаттями[Сума чека],ВитратиЗаСтаттями[Код головної книги],ЗведенняЩомісячнихВитрат[[#This Row],[Код головної книги]],ВитратиЗаСтаттями[Дата виставлення рахунка-фактури],\">=\"&H$3,ВитратиЗаСтаттями[Дата виставлення рахунка-фактури],\"<=\"&H$4)+SUMIFS(Інше[Сума чека],Інше[Код головної книги],ЗведенняЩомісячнихВитрат[[#This Row],[Код головної книги]],Інше[Дата ініціювання запиту на платіж],\">=\"\" 1, \"&DATEVALUE(ЗведенняЩомісячнихВитрат[[#Headers],[Травень]]&_xlfn.SINGLE(_РІК)),Інше[Дата ініціювання запиту на платіж],\"<=\"&H$4)","v":{"v":0,"d":"0.00₴"}},{"$f":"SUMIFS(ВитратиЗаСтаттями[Сума чека],ВитратиЗаСтаттями[Код головної книги],ЗведенняЩомісячнихВитрат[[#This Row],[Код головної книги]],ВитратиЗаСтаттями[Дата виставлення рахунка-фактури],\">=\"&I$3,ВитратиЗаСтаттями[Дата виставлення рахунка-фактури],\"<=\"&I$4)+SUMIFS(Інше[Сума чека],Інше[Код головної книги],ЗведенняЩомісячнихВитрат[[#This Row],[Код головної книги]],Інше[Дата ініціювання запиту на платіж],\">=\"\" 1, \"&DATEVALUE(ЗведенняЩомісячнихВитрат[[#Headers],[Червень]]&_xlfn.SINGLE(_РІК)),Інше[Дата ініціювання запиту на платіж],\"<=\"&I$4)","v":{"v":0,"d":"0.00₴"}},{"$f":"SUMIFS(ВитратиЗаСтаттями[Сума чека],ВитратиЗаСтаттями[Код головної книги],ЗведенняЩомісячнихВитрат[[#This Row],[Код головної книги]],ВитратиЗаСтаттями[Дата виставлення рахунка-фактури],\">=\"&J$3,ВитратиЗаСтаттями[Дата виставлення рахунка-фактури],\"<=\"&J$4)+SUMIFS(Інше[Сума чека],Інше[Код головної книги],ЗведенняЩомісячнихВитрат[[#This Row],[Код головної книги]],Інше[Дата ініціювання запиту на платіж],\">=\"\" 1, \"&DATEVALUE(ЗведенняЩомісячнихВитрат[[#Headers],[Липень]]&_xlfn.SINGLE(_РІК)),Інше[Дата ініціювання запиту на платіж],\"<=\"&J$4)","v":{"v":0,"d":"0.00₴"}},{"$f":"SUMIFS(ВитратиЗаСтаттями[Сума чека],ВитратиЗаСтаттями[Код головної книги],ЗведенняЩомісячнихВитрат[[#This Row],[Код головної книги]],ВитратиЗаСтаттями[Дата виставлення рахунка-фактури],\">=\"&K$3,ВитратиЗаСтаттями[Дата виставлення рахунка-фактури],\"<=\"&K$4)+SUMIFS(Інше[Сума чека],Інше[Код головної книги],ЗведенняЩомісячнихВитрат[[#This Row],[Код головної книги]],Інше[Дата ініціювання запиту на платіж],\">=\"\" 1, \"&DATEVALUE(ЗведенняЩомісячнихВитрат[[#Headers],[Серпень]]&_xlfn.SINGLE(_РІК)),Інше[Дата ініціювання запиту на платіж],\"<=\"&K$4)","v":{"v":0,"d":"0.00₴"}},{"$f":"SUMIFS(ВитратиЗаСтаттями[Сума чека],ВитратиЗаСтаттями[Код головної книги],ЗведенняЩомісячнихВитрат[[#This Row],[Код головної книги]],ВитратиЗаСтаттями[Дата виставлення рахунка-фактури],\">=\"&L$3,ВитратиЗаСтаттями[Дата виставлення рахунка-фактури],\"<=\"&L$4)+SUMIFS(Інше[Сума чека],Інше[Код головної книги],ЗведенняЩомісячнихВитрат[[#This Row],[Код головної книги]],Інше[Дата ініціювання запиту на платіж],\">=\"\" 1, \"&DATEVALUE(ЗведенняЩомісячнихВитрат[[#Headers],[Вересень]]&_xlfn.SINGLE(_РІК)),Інше[Дата ініціювання запиту на платіж],\"<=\"&L$4)","v":{"v":0,"d":"0.00₴"}},{"$f":"SUMIFS(ВитратиЗаСтаттями[Сума чека],ВитратиЗаСтаттями[Код головної книги],ЗведенняЩомісячнихВитрат[[#This Row],[Код головної книги]],ВитратиЗаСтаттями[Дата виставлення рахунка-фактури],\">=\"&M$3,ВитратиЗаСтаттями[Дата виставлення рахунка-фактури],\"<=\"&M$4)+SUMIFS(Інше[Сума чека],Інше[Код головної книги],ЗведенняЩомісячнихВитрат[[#This Row],[Код головної книги]],Інше[Дата ініціювання запиту на платіж],\">=\"\" 1, \"&DATEVALUE(ЗведенняЩомісячнихВитрат[[#Headers],[Жовтень]]&_xlfn.SINGLE(_РІК)),Інше[Дата ініціювання запиту на платіж],\"<=\"&M$4)","v":{"v":0,"d":"0.00₴"}},{"$f":"SUMIFS(ВитратиЗаСтаттями[Сума чека],ВитратиЗаСтаттями[Код головної книги],ЗведенняЩомісячнихВитрат[[#This Row],[Код головної книги]],ВитратиЗаСтаттями[Дата виставлення рахунка-фактури],\">=\"&N$3,ВитратиЗаСтаттями[Дата виставлення рахунка-фактури],\"<=\"&N$4)+SUMIFS(Інше[Сума чека],Інше[Код головної книги],ЗведенняЩомісячнихВитрат[[#This Row],[Код головної книги]],Інше[Дата ініціювання запиту на платіж],\">=\"\" 1, \"&DATEVALUE(ЗведенняЩомісячнихВитрат[[#Headers],[Листопад]]&_xlfn.SINGLE(_РІК)),Інше[Дата ініціювання запиту на платіж],\"<=\"&N$4)","v":{"v":0,"d":"0.00₴"}},{"$f":"SUMIFS(ВитратиЗаСтаттями[Сума чека],ВитратиЗаСтаттями[Код головної книги],ЗведенняЩомісячнихВитрат[[#This Row],[Код головної книги]],ВитратиЗаСтаттями[Дата виставлення рахунка-фактури],\">=\"&O$3,ВитратиЗаСтаттями[Дата виставлення рахунка-фактури],\"<=\"&O$4)+SUMIFS(Інше[Сума чека],Інше[Код головної книги],ЗведенняЩомісячнихВитрат[[#This Row],[Код головної книги]],Інше[Дата ініціювання запиту на платіж],\">=\"\" 1, \"&DATEVALUE(ЗведенняЩомісячнихВитрат[[#Headers],[Грудень]]&_xlfn.SINGLE(_РІК)),Інше[Дата ініціювання запиту на платіж],\"<=\"&O$4)","v":{"v":0,"d":"0.00₴"}},{"$f":"SUM(ЗведенняЩомісячнихВитрат[[#This Row],[Січень]:[Грудень]])","v":{"v":0,"d":"0.00₴"}}]
[null,11000,"Благодійність",{"$f":"SUMIFS(ВитратиЗаСтаттями[Сума чека],ВитратиЗаСтаттями[Код головної книги],ЗведенняЩомісячнихВитрат[[#This Row],[Код головної книги]],ВитратиЗаСтаттями[Дата виставлення рахунка-фактури],\">=\"&D$3,ВитратиЗаСтаттями[Дата виставлення рахунка-фактури],\"<=\"&D$4)+SUMIFS(Інше[Сума чека],Інше[Код головної книги],ЗведенняЩомісячнихВитрат[[#This Row],[Код головної книги]],Інше[Дата ініціювання запиту на платіж],\">=\"\" 1, \"&DATEVALUE(ЗведенняЩомісячнихВитрат[[#Headers],[Січень]]&_xlfn.SINGLE(_РІК)),Інше[Дата ініціювання запиту на платіж],\"<=\"&D$4)","v":{"v":0,"d":"0.00₴"}},{"$f":"SUMIFS(ВитратиЗаСтаттями[Сума чека],ВитратиЗаСтаттями[Код головної книги],ЗведенняЩомісячнихВитрат[[#This Row],[Код головної книги]],ВитратиЗаСтаттями[Дата виставлення рахунка-фактури],\">=\"&E$3,ВитратиЗаСтаттями[Дата виставлення рахунка-фактури],\"<=\"&E$4)+SUMIFS(Інше[Сума чека],Інше[Код головної книги],ЗведенняЩомісячнихВитрат[[#This Row],[Код головної книги]],Інше[Дата ініціювання запиту на платіж],\">=\"\" 1, \"&DATEVALUE(ЗведенняЩомісячнихВитрат[[#Headers],[Лютий]]&_xlfn.SINGLE(_РІК)),Інше[Дата ініціювання запиту на платіж],\"<=\"&E$4)","v":{"v":0,"d":"0.00₴"}},{"$f":"SUMIFS(ВитратиЗаСтаттями[Сума чека],ВитратиЗаСтаттями[Код головної книги],ЗведенняЩомісячнихВитрат[[#This Row],[Код головної книги]],ВитратиЗаСтаттями[Дата виставлення рахунка-фактури],\">=\"&F$3,ВитратиЗаСтаттями[Дата виставлення рахунка-фактури],\"<=\"&F$4)+SUMIFS(Інше[Сума чека],Інше[Код головної книги],ЗведенняЩомісячнихВитрат[[#This Row],[Код головної книги]],Інше[Дата ініціювання запиту на платіж],\">=\"\" 1, \"&DATEVALUE(ЗведенняЩомісячнихВитрат[[#Headers],[Березень]]&_xlfn.SINGLE(_РІК)),Інше[Дата ініціювання запиту на платіж],\"<=\"&F$4)","v":{"v":0,"d":"0.00₴"}},{"$f":"SUMIFS(ВитратиЗаСтаттями[Сума чека],ВитратиЗаСтаттями[Код головної книги],ЗведенняЩомісячнихВитрат[[#This Row],[Код головної книги]],ВитратиЗаСтаттями[Дата виставлення рахунка-фактури],\">=\"&G$3,ВитратиЗаСтаттями[Дата виставлення рахунка-фактури],\"<=\"&G$4)+SUMIFS(Інше[Сума чека],Інше[Код головної книги],ЗведенняЩомісячнихВитрат[[#This Row],[Код головної книги]],Інше[Дата ініціювання запиту на платіж],\">=\"\" 1, \"&DATEVALUE(ЗведенняЩомісячнихВитрат[[#Headers],[Квітень]]&_xlfn.SINGLE(_РІК)),Інше[Дата ініціювання запиту на платіж],\"<=\"&G$4)","v":{"v":0,"d":"0.00₴"}},{"$f":"SUMIFS(ВитратиЗаСтаттями[Сума чека],ВитратиЗаСтаттями[Код головної книги],ЗведенняЩомісячнихВитрат[[#This Row],[Код головної книги]],ВитратиЗаСтаттями[Дата виставлення рахунка-фактури],\">=\"&H$3,ВитратиЗаСтаттями[Дата виставлення рахунка-фактури],\"<=\"&H$4)+SUMIFS(Інше[Сума чека],Інше[Код головної книги],ЗведенняЩомісячнихВитрат[[#This Row],[Код головної книги]],Інше[Дата ініціювання запиту на платіж],\">=\"\" 1, \"&DATEVALUE(ЗведенняЩомісячнихВитрат[[#Headers],[Травень]]&_xlfn.SINGLE(_РІК)),Інше[Дата ініціювання запиту на платіж],\"<=\"&H$4)","v":{"v":0,"d":"0.00₴"}},{"$f":"SUMIFS(ВитратиЗаСтаттями[Сума чека],ВитратиЗаСтаттями[Код головної книги],ЗведенняЩомісячнихВитрат[[#This Row],[Код головної книги]],ВитратиЗаСтаттями[Дата виставлення рахунка-фактури],\">=\"&I$3,ВитратиЗаСтаттями[Дата виставлення рахунка-фактури],\"<=\"&I$4)+SUMIFS(Інше[Сума чека],Інше[Код головної книги],ЗведенняЩомісячнихВитрат[[#This Row],[Код головної книги]],Інше[Дата ініціювання запиту на платіж],\">=\"\" 1, \"&DATEVALUE(ЗведенняЩомісячнихВитрат[[#Headers],[Червень]]&_xlfn.SINGLE(_РІК)),Інше[Дата ініціювання запиту на платіж],\"<=\"&I$4)","v":{"v":0,"d":"0.00₴"}},{"$f":"SUMIFS(ВитратиЗаСтаттями[Сума чека],ВитратиЗаСтаттями[Код головної книги],ЗведенняЩомісячнихВитрат[[#This Row],[Код головної книги]],ВитратиЗаСтаттями[Дата виставлення рахунка-фактури],\">=\"&J$3,ВитратиЗаСтаттями[Дата виставлення рахунка-фактури],\"<=\"&J$4)+SUMIFS(Інше[Сума чека],Інше[Код головної книги],ЗведенняЩомісячнихВитрат[[#This Row],[Код головної книги]],Інше[Дата ініціювання запиту на платіж],\">=\"\" 1, \"&DATEVALUE(ЗведенняЩомісячнихВитрат[[#Headers],[Липень]]&_xlfn.SINGLE(_РІК)),Інше[Дата ініціювання запиту на платіж],\"<=\"&J$4)","v":{"v":0,"d":"0.00₴"}},{"$f":"SUMIFS(ВитратиЗаСтаттями[Сума чека],ВитратиЗаСтаттями[Код головної книги],ЗведенняЩомісячнихВитрат[[#This Row],[Код головної книги]],ВитратиЗаСтаттями[Дата виставлення рахунка-фактури],\">=\"&K$3,ВитратиЗаСтаттями[Дата виставлення рахунка-фактури],\"<=\"&K$4)+SUMIFS(Інше[Сума чека],Інше[Код головної книги],ЗведенняЩомісячнихВитрат[[#This Row],[Код головної книги]],Інше[Дата ініціювання запиту на платіж],\">=\"\" 1, \"&DATEVALUE(ЗведенняЩомісячнихВитрат[[#Headers],[Серпень]]&_xlfn.SINGLE(_РІК)),Інше[Дата ініціювання запиту на платіж],\"<=\"&K$4)","v":{"v":0,"d":"0.00₴"}},{"$f":"SUMIFS(ВитратиЗаСтаттями[Сума чека],ВитратиЗаСтаттями[Код головної книги],ЗведенняЩомісячнихВитрат[[#This Row],[Код головної книги]],ВитратиЗаСтаттями[Дата виставлення рахунка-фактури],\">=\"&L$3,ВитратиЗаСтаттями[Дата виставлення рахунка-фактури],\"<=\"&L$4)+SUMIFS(Інше[Сума чека],Інше[Код головної книги],ЗведенняЩомісячнихВитрат[[#This Row],[Код головної книги]],Інше[Дата ініціювання запиту на платіж],\">=\"\" 1, \"&DATEVALUE(ЗведенняЩомісячнихВитрат[[#Headers],[Вересень]]&_xlfn.SINGLE(_РІК)),Інше[Дата ініціювання запиту на платіж],\"<=\"&L$4)","v":{"v":0,"d":"0.00₴"}},{"$f":"SUMIFS(ВитратиЗаСтаттями[Сума чека],ВитратиЗаСтаттями[Код головної книги],ЗведенняЩомісячнихВитрат[[#This Row],[Код головної книги]],ВитратиЗаСтаттями[Дата виставлення рахунка-фактури],\">=\"&M$3,ВитратиЗаСтаттями[Дата виставлення рахунка-фактури],\"<=\"&M$4)+SUMIFS(Інше[Сума чека],Інше[Код головної книги],ЗведенняЩомісячнихВитрат[[#This Row],[Код головної книги]],Інше[Дата ініціювання запиту на платіж],\">=\"\" 1, \"&DATEVALUE(ЗведенняЩомісячнихВитрат[[#Headers],[Жовтень]]&_xlfn.SINGLE(_РІК)),Інше[Дата ініціювання запиту на платіж],\"<=\"&M$4)","v":{"v":0,"d":"0.00₴"}},{"$f":"SUMIFS(ВитратиЗаСтаттями[Сума чека],ВитратиЗаСтаттями[Код головної книги],ЗведенняЩомісячнихВитрат[[#This Row],[Код головної книги]],ВитратиЗаСтаттями[Дата виставлення рахунка-фактури],\">=\"&N$3,ВитратиЗаСтаттями[Дата виставлення рахунка-фактури],\"<=\"&N$4)+SUMIFS(Інше[Сума чека],Інше[Код головної книги],ЗведенняЩомісячнихВитрат[[#This Row],[Код головної книги]],Інше[Дата ініціювання запиту на платіж],\">=\"\" 1, \"&DATEVALUE(ЗведенняЩомісячнихВитрат[[#Headers],[Листопад]]&_xlfn.SINGLE(_РІК)),Інше[Дата ініціювання запиту на платіж],\"<=\"&N$4)","v":{"v":0,"d":"0.00₴"}},{"$f":"SUMIFS(ВитратиЗаСтаттями[Сума чека],ВитратиЗаСтаттями[Код головної книги],ЗведенняЩомісячнихВитрат[[#This Row],[Код головної книги]],ВитратиЗаСтаттями[Дата виставлення рахунка-фактури],\">=\"&O$3,ВитратиЗаСтаттями[Дата виставлення рахунка-фактури],\"<=\"&O$4)+SUMIFS(Інше[Сума чека],Інше[Код головної книги],ЗведенняЩомісячнихВитрат[[#This Row],[Код головної книги]],Інше[Дата ініціювання запиту на платіж],\">=\"\" 1, \"&DATEVALUE(ЗведенняЩомісячнихВитрат[[#Headers],[Грудень]]&_xlfn.SINGLE(_РІК)),Інше[Дата ініціювання запиту на платіж],\"<=\"&O$4)","v":{"v":0,"d":"0.00₴"}},{"$f":"SUM(ЗведенняЩомісячнихВитрат[[#This Row],[Січень]:[Грудень]])","v":{"v":0,"d":"0.00₴"}}]
[null,12000,"Спонсорство",{"$f":"SUMIFS(ВитратиЗаСтаттями[Сума чека],ВитратиЗаСтаттями[Код головної книги],ЗведенняЩомісячнихВитрат[[#This Row],[Код головної книги]],ВитратиЗаСтаттями[Дата виставлення рахунка-фактури],\">=\"&D$3,ВитратиЗаСтаттями[Дата виставлення рахунка-фактури],\"<=\"&D$4)+SUMIFS(Інше[Сума чека],Інше[Код головної книги],ЗведенняЩомісячнихВитрат[[#This Row],[Код головної книги]],Інше[Дата ініціювання запиту на платіж],\">=\"\" 1, \"&DATEVALUE(ЗведенняЩомісячнихВитрат[[#Headers],[Січень]]&_xlfn.SINGLE(_РІК)),Інше[Дата ініціювання запиту на платіж],\"<=\"&D$4)","v":{"v":0,"d":"0.00₴"}},{"$f":"SUMIFS(ВитратиЗаСтаттями[Сума чека],ВитратиЗаСтаттями[Код головної книги],ЗведенняЩомісячнихВитрат[[#This Row],[Код головної книги]],ВитратиЗаСтаттями[Дата виставлення рахунка-фактури],\">=\"&E$3,ВитратиЗаСтаттями[Дата виставлення рахунка-фактури],\"<=\"&E$4)+SUMIFS(Інше[Сума чека],Інше[Код головної книги],ЗведенняЩомісячнихВитрат[[#This Row],[Код головної книги]],Інше[Дата ініціювання запиту на платіж],\">=\"\" 1, \"&DATEVALUE(ЗведенняЩомісячнихВитрат[[#Headers],[Лютий]]&_xlfn.SINGLE(_РІК)),Інше[Дата ініціювання запиту на платіж],\"<=\"&E$4)","v":{"v":0,"d":"0.00₴"}},{"$f":"SUMIFS(ВитратиЗаСтаттями[Сума чека],ВитратиЗаСтаттями[Код головної книги],ЗведенняЩомісячнихВитрат[[#This Row],[Код головної книги]],ВитратиЗаСтаттями[Дата виставлення рахунка-фактури],\">=\"&F$3,ВитратиЗаСтаттями[Дата виставлення рахунка-фактури],\"<=\"&F$4)+SUMIFS(Інше[Сума чека],Інше[Код головної книги],ЗведенняЩомісячнихВитрат[[#This Row],[Код головної книги]],Інше[Дата ініціювання запиту на платіж],\">=\"\" 1, \"&DATEVALUE(ЗведенняЩомісячнихВитрат[[#Headers],[Березень]]&_xlfn.SINGLE(_РІК)),Інше[Дата ініціювання запиту на платіж],\"<=\"&F$4)","v":{"v":0,"d":"0.00₴"}},{"$f":"SUMIFS(ВитратиЗаСтаттями[Сума чека],ВитратиЗаСтаттями[Код головної книги],ЗведенняЩомісячнихВитрат[[#This Row],[Код головної книги]],ВитратиЗаСтаттями[Дата виставлення рахунка-фактури],\">=\"&G$3,ВитратиЗаСтаттями[Дата виставлення рахунка-фактури],\"<=\"&G$4)+SUMIFS(Інше[Сума чека],Інше[Код головної книги],ЗведенняЩомісячнихВитрат[[#This Row],[Код головної книги]],Інше[Дата ініціювання запиту на платіж],\">=\"\" 1, \"&DATEVALUE(ЗведенняЩомісячнихВитрат[[#Headers],[Квітень]]&_xlfn.SINGLE(_РІК)),Інше[Дата ініціювання запиту на платіж],\"<=\"&G$4)","v":{"v":0,"d":"0.00₴"}},{"$f":"SUMIFS(ВитратиЗаСтаттями[Сума чека],ВитратиЗаСтаттями[Код головної книги],ЗведенняЩомісячнихВитрат[[#This Row],[Код головної книги]],ВитратиЗаСтаттями[Дата виставлення рахунка-фактури],\">=\"&H$3,ВитратиЗаСтаттями[Дата виставлення рахунка-фактури],\"<=\"&H$4)+SUMIFS(Інше[Сума чека],Інше[Код головної книги],ЗведенняЩомісячнихВитрат[[#This Row],[Код головної книги]],Інше[Дата ініціювання запиту на платіж],\">=\"\" 1, \"&DATEVALUE(ЗведенняЩомісячнихВитрат[[#Headers],[Травень]]&_xlfn.SINGLE(_РІК)),Інше[Дата ініціювання запиту на платіж],\"<=\"&H$4)","v":{"v":0,"d":"0.00₴"}},{"$f":"SUMIFS(ВитратиЗаСтаттями[Сума чека],ВитратиЗаСтаттями[Код головної книги],ЗведенняЩомісячнихВитрат[[#This Row],[Код головної книги]],ВитратиЗаСтаттями[Дата виставлення рахунка-фактури],\">=\"&I$3,ВитратиЗаСтаттями[Дата виставлення рахунка-фактури],\"<=\"&I$4)+SUMIFS(Інше[Сума чека],Інше[Код головної книги],ЗведенняЩомісячнихВитрат[[#This Row],[Код головної книги]],Інше[Дата ініціювання запиту на платіж],\">=\"\" 1, \"&DATEVALUE(ЗведенняЩомісячнихВитрат[[#Headers],[Червень]]&_xlfn.SINGLE(_РІК)),Інше[Дата ініціювання запиту на платіж],\"<=\"&I$4)","v":{"v":0,"d":"0.00₴"}},{"$f":"SUMIFS(ВитратиЗаСтаттями[Сума чека],ВитратиЗаСтаттями[Код головної книги],ЗведенняЩомісячнихВитрат[[#This Row],[Код головної книги]],ВитратиЗаСтаттями[Дата виставлення рахунка-фактури],\">=\"&J$3,ВитратиЗаСтаттями[Дата виставлення рахунка-фактури],\"<=\"&J$4)+SUMIFS(Інше[Сума чека],Інше[Код головної книги],ЗведенняЩомісячнихВитрат[[#This Row],[Код головної книги]],Інше[Дата ініціювання запиту на платіж],\">=\"\" 1, \"&DATEVALUE(ЗведенняЩомісячнихВитрат[[#Headers],[Липень]]&_xlfn.SINGLE(_РІК)),Інше[Дата ініціювання запиту на платіж],\"<=\"&J$4)","v":{"v":0,"d":"0.00₴"}},{"$f":"SUMIFS(ВитратиЗаСтаттями[Сума чека],ВитратиЗаСтаттями[Код головної книги],ЗведенняЩомісячнихВитрат[[#This Row],[Код головної книги]],ВитратиЗаСтаттями[Дата виставлення рахунка-фактури],\">=\"&K$3,ВитратиЗаСтаттями[Дата виставлення рахунка-фактури],\"<=\"&K$4)+SUMIFS(Інше[Сума чека],Інше[Код головної книги],ЗведенняЩомісячнихВитрат[[#This Row],[Код головної книги]],Інше[Дата ініціювання запиту на платіж],\">=\"\" 1, \"&DATEVALUE(ЗведенняЩомісячнихВитрат[[#Headers],[Серпень]]&_xlfn.SINGLE(_РІК)),Інше[Дата ініціювання запиту на платіж],\"<=\"&K$4)","v":{"v":0,"d":"0.00₴"}},{"$f":"SUMIFS(ВитратиЗаСтаттями[Сума чека],ВитратиЗаСтаттями[Код головної книги],ЗведенняЩомісячнихВитрат[[#This Row],[Код головної книги]],ВитратиЗаСтаттями[Дата виставлення рахунка-фактури],\">=\"&L$3,ВитратиЗаСтаттями[Дата виставлення рахунка-фактури],\"<=\"&L$4)+SUMIFS(Інше[Сума чека],Інше[Код головної книги],ЗведенняЩомісячнихВитрат[[#This Row],[Код головної книги]],Інше[Дата ініціювання запиту на платіж],\">=\"\" 1, \"&DATEVALUE(ЗведенняЩомісячнихВитрат[[#Headers],[Вересень]]&_xlfn.SINGLE(_РІК)),Інше[Дата ініціювання запиту на платіж],\"<=\"&L$4)","v":{"v":0,"d":"0.00₴"}},{"$f":"SUMIFS(ВитратиЗаСтаттями[Сума чека],ВитратиЗаСтаттями[Код головної книги],ЗведенняЩомісячнихВитрат[[#This Row],[Код головної книги]],ВитратиЗаСтаттями[Дата виставлення рахунка-фактури],\">=\"&M$3,ВитратиЗаСтаттями[Дата виставлення рахунка-фактури],\"<=\"&M$4)+SUMIFS(Інше[Сума чека],Інше[Код головної книги],ЗведенняЩомісячнихВитрат[[#This Row],[Код головної книги]],Інше[Дата ініціювання запиту на платіж],\">=\"\" 1, \"&DATEVALUE(ЗведенняЩомісячнихВитрат[[#Headers],[Жовтень]]&_xlfn.SINGLE(_РІК)),Інше[Дата ініціювання запиту на платіж],\"<=\"&M$4)","v":{"v":0,"d":"0.00₴"}},{"$f":"SUMIFS(ВитратиЗаСтаттями[Сума чека],ВитратиЗаСтаттями[Код головної книги],ЗведенняЩомісячнихВитрат[[#This Row],[Код головної книги]],ВитратиЗаСтаттями[Дата виставлення рахунка-фактури],\">=\"&N$3,ВитратиЗаСтаттями[Дата виставлення рахунка-фактури],\"<=\"&N$4)+SUMIFS(Інше[Сума чека],Інше[Код головної книги],ЗведенняЩомісячнихВитрат[[#This Row],[Код головної книги]],Інше[Дата ініціювання запиту на платіж],\">=\"\" 1, \"&DATEVALUE(ЗведенняЩомісячнихВитрат[[#Headers],[Листопад]]&_xlfn.SINGLE(_РІК)),Інше[Дата ініціювання запиту на платіж],\"<=\"&N$4)","v":{"v":0,"d":"0.00₴"}},{"$f":"SUMIFS(ВитратиЗаСтаттями[Сума чека],ВитратиЗаСтаттями[Код головної книги],ЗведенняЩомісячнихВитрат[[#This Row],[Код головної книги]],ВитратиЗаСтаттями[Дата виставлення рахунка-фактури],\">=\"&O$3,ВитратиЗаСтаттями[Дата виставлення рахунка-фактури],\"<=\"&O$4)+SUMIFS(Інше[Сума чека],Інше[Код головної книги],ЗведенняЩомісячнихВитрат[[#This Row],[Код головної книги]],Інше[Дата ініціювання запиту на платіж],\">=\"\" 1, \"&DATEVALUE(ЗведенняЩомісячнихВитрат[[#Headers],[Грудень]]&_xlfn.SINGLE(_РІК)),Інше[Дата ініціювання запиту на платіж],\"<=\"&O$4)","v":{"v":0,"d":"0.00₴"}},{"$f":"SUM(ЗведенняЩомісячнихВитрат[[#This Row],[Січень]:[Грудень]])","v":{"v":0,"d":"0.00₴"}}]
[null,"Підсумок",null,{"$f":"SUBTOTAL(109,ЗведенняЩомісячнихВитрат[Січень])","v":{"v":0,"d":"0.00₴"}},{"$f":"SUBTOTAL(109,ЗведенняЩомісячнихВитрат[Лютий])","v":{"v":0,"d":"0.00₴"}},{"$f":"SUBTOTAL(109,ЗведенняЩомісячнихВитрат[Березень])","v":{"v":0,"d":"0.00₴"}},{"$f":"SUBTOTAL(109,ЗведенняЩомісячнихВитрат[Квітень])","v":{"v":0,"d":"0.00₴"}},{"$f":"SUBTOTAL(109,ЗведенняЩомісячнихВитрат[Травень])","v":{"v":0,"d":"0.00₴"}},{"$f":"SUBTOTAL(109,ЗведенняЩомісячнихВитрат[Червень])","v":{"v":0,"d":"0.00₴"}},{"$f":"SUBTOTAL(109,ЗведенняЩомісячнихВитрат[Липень])","v":{"v":0,"d":"0.00₴"}},{"$f":"SUBTOTAL(109,ЗведенняЩомісячнихВитрат[Серпень])","v":{"v":0,"d":"0.00₴"}},{"$f":"SUBTOTAL(109,ЗведенняЩомісячнихВитрат[Вересень])","v":{"v":0,"d":"0.00₴"}},{"$f":"SUBTOTAL(109,ЗведенняЩомісячнихВитрат[Жовтень])","v":{"v":0,"d":"0.00₴"}},{"$f":"SUBTOTAL(109,ЗведенняЩомісячнихВитрат[Листопад])","v":{"v":0,"d":"0.00₴"}},{"$f":"SUBTOTAL(109,ЗведенняЩомісячнихВитрат[Грудень])","v":{"v":0,"d":"0.00₴"}},{"$f":"SUBTOTAL(109,ЗведенняЩомісячнихВитрат[Підсумок])","v":{"v":0,"d":"0.00₴"}}]

{"sheet":"ВИТРАТИ ЗА СТАТТЯМИ","index":2,"n_rows":6,"n_cols":10,"rows_kept":6,"merged":[[1,1,1,9],[2,1,2,5],[2,6,2,9]]}
[null,"ЗВЕДЕННЯ ЩОМІСЯЧНИХ ВИТРАТ","БЛАГОДІЙНІСТЬ І СПОНСОРСТВО"]
[null,"ВИТРАТИ ЗА ПУНКТАМИ"]
[null,"Роздільник, який дає змогу фільтрувати дані за автором запита, наведено в цій клітинці, а роздільник для фільтрування за одержувачами платежу – у клітинці праворуч.",{"$nulls":4},"Роздільник, який дає змогу фільтрувати дані за одержувачами платежу, наведено в цій клітинці."]
[null,"Код головної книги","Дата виставлення рахунка-фактури","Номер рахунка-фактури","Ким запитано","Сума чека","Одержувач платежу","Призначення чека","Метод розподілу","Дата створення"]
[null,1000,"Дата",100,"Ярослав Багрій",{"v":750.75,"d":"750.75₴"},"Домени України ","Служба розсилок","Пошта","Дата"]
[null,7000,"Дата",101,"Павло Поліщук",{"v":2500,"d":"2,500.00₴"},"Товари та послуги ","2 настільних комп’ютери","Кредит","Дата"]

{"sheet":"БЛАГОДІЙНІСТЬ І СПОНСОРСТВО","index":3,"n_rows":6,"n_cols":12,"rows_kept":6,"merged":[[1,1,1,11],[2,1,2,5],[2,6,2,11]]}
[null,"ВИТРАТИ ЗА ПУНКТАМИ"]
[null,"БЛАГОДІЙНІСТЬ І СПОНСОРСТВО"]
[null,"Роздільник, який дає змогу фільтрувати дані за автором запита, наведено в цій клітинці, а роздільник для фільтрування за одержувачами платежу – у клітинці праворуч.",{"$nulls":4},"Роздільник, який дає змогу фільтрувати дані за одержувачами платежу, наведено в цій клітинці."]
[null,"Код головної книги","Дата ініціювання запиту на платіж","Ким запитано","Сума чека","Внесок за попередній рік","Одержувач платежу","Використовується для","Ким підписано","Категорія","Метод розподілу","Дата створення"]
[null,12000,"Дата","Світлана Лисенко",{"v":1000,"d":"1,000.00₴"},{"v":12,"d":"12.00₴"},"Школа мистецтв ","Стипендія","Катерина Тищенко","Мистецтво","Чек","Дата"]
[null,11000,"Дата","Світлана Лисенко",{"v":2500,"d":"2,500.00₴"},{"v":0,"d":"0.00₴"},"Товари для дітей ","Спільнота","Оксана Бойко","Спільнота","Чек","Дата"]